{"text_format":"1","workbook":"xlsx","n_sheets":7,"sheets":["Dolny układ jezdny","Obliczenia-dolny","OVERLINE","Overline - Obliczenia","QUANTUM","Quantum - obliczenia","Opisy"],"not_rendered":{"charts":0,"images":54,"macros":1,"external_links":0,"defined_names":59,"comments":0,"pivot_tables":0},"unopened":[],"bounds":{"document_bytes":16777216,"sheet_cells":100000,"rows_first":2000,"rows_last":500,"rows_between":2000,"halvings":0,"cell_chars":16384,"cell_head_chars":4096},"cells_cut":0,"cells_raw":0,"read":"whole","date_system":"1900"}

{"sheet":"Dolny układ jezdny","index":0,"n_rows":70,"n_cols":13,"rows_kept":70,"cut":false,"hidden":false,"merged":[[59,11,61,11],[52,12,55,12],[54,8,55,8],[55,2,55,4],[53,2,53,6],[54,2,54,6],[51,4,51,6],[52,8,53,8],[52,11,55,11],[56,11,58,11],[54,9,55,9],[52,10,55,10],[56,10,58,10],[52,9,53,9],[63,2,69,6],[56,2,56,4],[61,2,61,4],[62,2,62,4],[59,2,59,4],[60,2,60,6],[57,2,57,6],[58,2,58,4],[34,2,34,12],[9,10,11,10],[18,12,20,12],[18,11,20,11],[12,10,14,10],[9,11,11,11],[12,12,14,12],[18,10,20,10],[12,11,14,11],[15,10,17,10],[15,11,17,11],[15,12,17,12],[18,4,19,4],[21,2,26,4],[33,3,33,8],[6,3,6,4],[10,2,10,3],[16,2,16,3],[28,2,28,4],[28,5,28,12],[9,12,11,12]]}
[]
[]
[]
[]
[]
[]
[null,null,{"$f":"Opisy!A15","v":"Vyber profil"}]
[]
["1."]
[]
[null,null,{"$f":"Opisy!A18","v":"Rozmery otvoru"},null,null,"SD",{"$f":"HLOOKUP('Obliczenia-dolny'!$B$44,'Obliczenia-dolny'!$L$1:$AK$46,5,FALSE)","v":851},{"$f":"Opisy!$A$50","v":"mm"},{"$f":"Opisy!A55","v":"Šírka dverí"}]
["2.",null,{"$f":"Opisy!A22","v":"WO [mm]"},2500,{"$f":"IF(D12>2740,Opisy!A19,IF(D12<1000,Opisy!A20,Opisy!A21))","v":"<- OK"},"WD",{"$f":"HLOOKUP('Obliczenia-dolny'!$B$44,'Obliczenia-dolny'!$L$1:$AK$46,6,FALSE)","v":2460},{"$f":"Opisy!$A$50","v":"mm"},{"$f":"Opisy!A56","v":"Výška dverí"}]
["3.",null,{"$f":"Opisy!A23","v":"SO [mm]"},2500,{"$f":"IF(AND('Obliczenia-dolny'!C44='Obliczenia-dolny'!B11,'Dolny układ jezdny'!D13>3000),Opisy!A80,IF(D13>6000,Opisy!A24,IF(D13<1000,Opisy!A20,Opisy!A21)))","v":"<- OK"},"SW18",{"$f":"HLOOKUP('Obliczenia-dolny'!$B$44,'Obliczenia-dolny'!$L$1:$AK$46,7,FALSE)","v":844},{"$f":"Opisy!$A$50","v":"mm"},{"$f":"Opisy!A57","v":"Výplň 18mm"}]
[null,null,null,null,null,"SW16",{"$f":"HLOOKUP('Obliczenia-dolny'!$B$44,'Obliczenia-dolny'!$L$1:$AK$46,8,FALSE)","v":"-"},{"$f":"Opisy!$A$50","v":"mm"},{"$f":"Opisy!A58","v":"Výplň 16mm"}]
[null,null,null,null,null,"SW12",{"$f":"HLOOKUP('Obliczenia-dolny'!$B$44,'Obliczenia-dolny'!$L$1:$AK$46,9,FALSE)","v":"-"},{"$f":"Opisy!$A$50","v":"mm"},{"$f":"Opisy!A59","v":"Výplň 12mm"}]
[null,null,null,null,null,"SW10",{"$f":"HLOOKUP('Obliczenia-dolny'!$B$44,'Obliczenia-dolny'!$L$1:$AK$46,10,FALSE)","v":"-"},{"$f":"Opisy!$A$50","v":"mm"},{"$f":"Opisy!A60","v":"Výplň 10mm"}]
[null,null,{"$f":"Opisy!A25","v":"Konfigurácia krídiel"},null,null,"SW4",{"$f":"HLOOKUP('Obliczenia-dolny'!$B$44,'Obliczenia-dolny'!$L$1:$AK$46,11,FALSE)","v":"-"},{"$f":"Opisy!$A$50","v":"mm"},{"$f":"Opisy!A61","v":"Výplň 4mm"}]
["4.",null,{"$f":"Opisy!A26","v":"n (I. krídiel )"},3,{"$f":"IF(D18=0,Opisy!A52,IF($D$18>$D$19,IF($D$18>$D$19+2,Opisy!A52,Opisy!A21),Opisy!A52))","v":"<- OK"},"WW18",{"$f":"HLOOKUP('Obliczenia-dolny'!$B$44,'Obliczenia-dolny'!$L$1:$AK$46,12,FALSE)","v":2457},{"$f":"Opisy!$A$50","v":"mm"},{"$f":"Opisy!A62","v":"Výplň 18mm"}]
["5.",null,{"$f":"Opisy!A27","v":"k (I. prekrytie )"},2,{"$f":"IF(D19=0,Opisy!A52,IF($D$18>$D$19,IF($D$18>$D$19+2,Opisy!A72,Opisy!A21),Opisy!A73))","v":"<- OK"},"WW16",{"$f":"HLOOKUP('Obliczenia-dolny'!$B$44,'Obliczenia-dolny'!$L$1:$AK$46,13,FALSE)","v":"-"},{"$f":"Opisy!$A$50","v":"mm"},{"$f":"Opisy!A63","v":"Výplň 16mm"}]
[null,null,{"$f":"Opisy!A28","v":"z (šírka prekrytia)"},{"$f":"HLOOKUP('Obliczenia-dolny'!$B$44,'Obliczenia-dolny'!$L$1:$AK$46,21,FALSE)","v":28},null,"WW12",{"$f":"HLOOKUP('Obliczenia-dolny'!$B$44,'Obliczenia-dolny'!$L$1:$AK$46,14,FALSE)","v":"-"},{"$f":"Opisy!$A$50","v":"mm"},{"$f":"Opisy!A64","v":"Výplň 12mm"}]
[null,null,{"$f":"Opisy!A29","v":"Štetina"},null,null,"WW10",{"$f":"HLOOKUP('Obliczenia-dolny'!$B$44,'Obliczenia-dolny'!$L$1:$AK$46,15,FALSE)","v":"-"},{"$f":"Opisy!$A$50","v":"mm"},{"$f":"Opisy!A65","v":"Výplň 10mm"}]
[null,null,{"$f":"IF(D18-D19>1,Opisy!A77,\" \")","v":" "},null,null,"WW4",{"$f":"HLOOKUP('Obliczenia-dolny'!$B$44,'Obliczenia-dolny'!$L$1:$AK$46,16,FALSE)","v":"-"},{"$f":"Opisy!$A$50","v":"mm"},{"$f":"Opisy!A66","v":"Výplň 4mm"}]
[null,null,null,null,null,"DR",{"$f":"HLOOKUP('Obliczenia-dolny'!$B$44,'Obliczenia-dolny'!$L$1:$AK$46,17,FALSE)","v":2460},{"$f":"Opisy!$A$50","v":"mm"},{"$f":"Opisy!A67","v":"Dĺžka madla"}]
[null,null,null,null,null,"DLP",{"$f":"HLOOKUP('Obliczenia-dolny'!$B$44,'Obliczenia-dolny'!$L$1:$AK$46,18,FALSE)","v":798},{"$f":"Opisy!$A$50","v":"mm"},{"$f":"Opisy!A68","v":"Dĺžka spojovacieho prof."}]
[null,null,null,null,null,{"$f":"IF(G25=Opisy!$E$1,Opisy!$E$2,\" \")","v":" "},{"$f":"IF(laczniki_tak,IF('Obliczenia-dolny'!$H$25=1,HLOOKUP(Wybrany_system,'Obliczenia-dolny'!$L$1:$AK$46,19,FALSE),IF(AND(System_z_grupy=\"B\",Wybrany_lacznik=1),HLOOKUP('Obliczenia-dolny'!$B$44,'Obliczenia-dolny'!$L$1:$AK$46,19,FALSE),Opisy!$A$52)),HLOOKUP('Obliczenia-dolny'!$B$44,'Obliczenia-dolny'!$L$1:$AK$46,19,FALSE))","v":24.893525280000002},{"$f":"Opisy!$A$71","v":"kg"},{"$f":"IF('Obliczenia-dolny'!$C$44='Obliczenia-dolny'!$B$11,Opisy!A78,Opisy!A69)","v":"Váha krídla s výplňou DTD"}]
[null,null,null,null,null,{"$f":"IF(G26=Opisy!$E$1,Opisy!$E$2,\" \")","v":" "},{"$f":"IF(laczniki_tak,IF('Obliczenia-dolny'!$H$25=1,HLOOKUP(Wybrany_system,'Obliczenia-dolny'!$L$1:$AK$46,20,FALSE),IF(AND(System_z_grupy=\"B\",Wybrany_lacznik=1),HLOOKUP('Obliczenia-dolny'!$B$44,'Obliczenia-dolny'!$L$1:$AK$46,20,FALSE),Opisy!$A$52)),HLOOKUP('Obliczenia-dolny'!$B$44,'Obliczenia-dolny'!$L$1:$AK$46,20,FALSE))","v":"-"},{"$f":"Opisy!$A$71","v":"kg"},{"$f":"IF('Obliczenia-dolny'!$C$44='Obliczenia-dolny'!$B$11,Opisy!A79,Opisy!A70)","v":"Váha krídla s výplňou sklo"}]
[]
[null,null,{"$f":"Opisy!A30","v":"Pozor:"}]
[null,null,{"$f":"Opisy!A31","v":"Rozmery krídiel pre montáž mechanizmu soft closing:"},null,null,{"$f":"IF('Obliczenia-dolny'!$L$6/'Obliczenia-dolny'!$L$5>3,Opisy!A33,Opisy!A34)","v":"Pomery sú v poriadku."}]
[null,null,{"$f":"Opisy!A32","v":"* - Hmotnosť krídla je vypočítana tak, aby splnila z DTD  ( 620 kg / M3 ) alebo sklo ( 2800 kg / M3 ) bez škár"}]
[]
[null,null,null,null,"6.",{"$f":"Opisy!A35","v":"\"H\" profily"}]
[]
[null,null,null,{"$f":"IF(AND('Obliczenia-dolny'!C44='Obliczenia-dolny'!B11,'Obliczenia-dolny'!D6),Opisy!A155,\" \")","v":" "}]
[null,null,{"$f":"Opisy!A36","v":"Výpočet kombinovaných výplní."}]
[]
[]
[]
[]
[]
[]
[]
[]
[]
[]
[]
[]
[]
[]
[]
[]
["7.",null,{"$f":"Opisy!A37","v":"Vyber \"H\" profil"},null,{"$f":"IF(OR(F25=Opisy!E2,F26=Opisy!E2),Opisy!E2,\" \")","v":" "},null,null,null,{"$f":"IF(AND('Obliczenia-dolny'!$D$6,'Obliczenia-dolny'!$G$25='Obliczenia-dolny'!$D$25),\"↓18mm↓\",\" \")","v":"↓18mm↓"},{"$f":"IF(AND('Obliczenia-dolny'!$D$6,'Obliczenia-dolny'!$G$25='Obliczenia-dolny'!D26),\"↓16/12+4mm↓\",\" \")","v":" "},{"$f":"IF(AND('Obliczenia-dolny'!$D$6,'Obliczenia-dolny'!$G$25='Obliczenia-dolny'!D27),\"↓18/4mm↓\",\" \")","v":" "},{"$f":"IF(AND('Obliczenia-dolny'!$D$6,'Obliczenia-dolny'!$G$25='Obliczenia-dolny'!D28),\"↓10/4mm↓\",\" \")","v":" "},{"$f":"IF(AND('Obliczenia-dolny'!$D$6,'Obliczenia-dolny'!$G$25='Obliczenia-dolny'!D29),\"↓FlatLine↓\",\" \")","v":" "}]
[]
[null,null,{"$f":"Opisy!A38","v":"Rovnomerné rozloženie \"H\" profilov"}]
[null,null,{"$f":"Opisy!A39","v":"Jedna hrúbka výplne"}]
["8.",null,{"$f":"Opisy!A40","v":"i ( počet profilov \"H\" )"},null,null,2,{"$f":"Opisy!$A$49","v":"ks"}]
[null,null,{"$f":"Opisy!A41","v":"Počet dielov"},null,null,{"$f":"IF('Obliczenia-dolny'!D6=TRUE,F56+1,\"-\")","v":3},{"$f":"Opisy!$A$49","v":"ks"}]
[null,null,{"$f":"Opisy!A42","v":"Diely z DTD"}]
[null,null,{"$f":"Opisy!A43","v":"Výška DTD bez profilov \"H\""},null,null,{"$f":"'Obliczenia-dolny'!AM43","v":2457},{"$f":"Opisy!A50","v":"mm"}]
[null,null,{"$f":"Opisy!A44","v":"A (výška dielov z DTD)"},null,null,{"$f":"'Obliczenia-dolny'!AM44","v":818.33333333333337},{"$f":"G59","v":"mm"}]
[null,null,{"$f":"Opisy!A46","v":"Diely zo skla 4mm"}]
[null,null,{"$f":"Opisy!A47","v":"Výška skla bez profilov \"H\""},null,null,{"$f":"'Obliczenia-dolny'!AM45","v":"-"},{"$f":"Opisy!A50","v":"mm"}]
[null,null,{"$f":"Opisy!A48","v":"C (Výška skla 4mm )"},null,null,{"$f":"'Obliczenia-dolny'!AM46","v":"-"},{"$f":"IF(AND('Obliczenia-dolny'!G25=\"C\",'Obliczenia-dolny'!D6),Opisy!A51,Opisy!A50)","v":"mm"}]
[null,null,{"$f":"IF(AND('Obliczenia-dolny'!G25=\"C\",'Obliczenia-dolny'!D6),Opisy!A54,\" \")","v":" "}]
[]
[]
[null,null,null,null,null,null,null,null,null,null,null,null,"GTV Poland Sp. z o.o. Sp. k."]
[null,null,null,null,null,null,null,null,null,null,null,null,"ul. Przejazdowa 21, 05-800 Pruszków, Polska"]
[null,null,null,null,null,null,null,null,null,null,null,null,"www.gtv.com.pl"]
[null,null,null,null,null,null,null,null,null,null,null,null,"gtv.tech@gtv.com.pl"]

{"sheet":"Obliczenia-dolny","index":1,"n_rows":46,"n_cols":39,"rows_kept":46,"cut":false,"hidden":true,"merged":[[23,38,27,38],[23,11,23,36],[24,11,24,36],[0,38,3,38],[1,12,1,14],[1,15,1,16],[1,22,1,23],[1,26,1,28],[1,29,1,30],[1,31,1,32],[25,11,25,36],[26,11,26,36],[27,11,27,36],[29,11,29,36],[0,3,0,6],[4,3,4,6],[25,5,26,7],[1,5,2,5],[1,3,2,4],[1,24,1,25]]}
[1,"ERGO 18mm",null,"Wybór rozwiązania ze szczotką",null,null,null,null,{"$f":"L6/L5","v":2.8907168037602822},null,1,1,4,5,13,2,3,12,18,19,23,24,6,14,26,27,7,8,15,9,16,10,17,20,21,22,11,1,"Aktualnie wybrany system"]
[2,"NOVO II 18mm",null,true,null,{"$f":"IF(D2,3,0)","v":3},"Tak",null,null,"rączka",2,"ERGO","NOVO",null,null,"NOVO II",null,null,null,"NOVO 10","71 ARCO","85 FALDA","VISTA",null,"LOCA",null,"COTE",null,null,"NERO",null,"CARO",null,"FORM","TRAFO","FlatLine","Mito/Mito+",2]
[3,"NOVO II 12+4mm",null,null,null,null,"Nie",null,null,"system",3,"18mm","18mm","16mm","18/4mm","18mm","12+4mm","-","-","10/4mm","10/4mm",{"$f":"U3","v":"10/4mm"},"18mm","18/4mm",{"$f":"W3","v":"18mm"},{"$f":"X3","v":"18/4mm"},"18mm","16mm","18/4mm","18mm","18/4mm","18mm","18/4mm","10/4mm","10/4mm","10/4mm","10/4mm",3]
[4,"NOVO S 18mm",null,null,null,null,null,null,null,"waga 1mb. [kg]",4,0.219,0.33800000000000002,0.33800000000000002,0.33800000000000002,0.33200000000000002,0.33200000000000002,"-","-",0.35,0.41799999999999998,0.46300000000000002,0.38,0.38,0.48199999999999998,0.48199999999999998,0.35699999999999998,0.35699999999999998,0.35699999999999998,0.39300000000000002,0.39300000000000002,0.41399999999999998,0.41399999999999998,0.36199999999999999,0.34100000000000003,0.40500000000000003,0,4]
[5,"NOVO S 16mm",null,"Łączniki",null,null,null,null,null,"SD",5,{"$f":"IF($D$2,('Dolny układ jezdny'!$D$13-3+'Dolny układ jezdny'!$D$19*L21)/'Dolny układ jezdny'!$D$18,('Dolny układ jezdny'!$D$13+'Dolny układ jezdny'!$D$19*L21)/'Dolny układ jezdny'!$D$18)","v":851},{"$f":"IF($D$2,('Dolny układ jezdny'!$D$13-3+'Dolny układ jezdny'!$D$19*M21)/'Dolny układ jezdny'!$D$18,('Dolny układ jezdny'!$D$13+'Dolny układ jezdny'!$D$19*M21)/'Dolny układ jezdny'!$D$18)","v":855},{"$f":"IF($D$2,('Dolny układ jezdny'!$D$13-3+'Dolny układ jezdny'!$D$19*N21)/'Dolny układ jezdny'!$D$18,('Dolny układ jezdny'!$D$13+'Dolny układ jezdny'!$D$19*N21)/'Dolny układ jezdny'!$D$18)","v":855},{"$f":"IF($D$2,('Dolny układ jezdny'!$D$13-3+'Dolny układ jezdny'!$D$19*O21)/'Dolny układ jezdny'!$D$18,('Dolny układ jezdny'!$D$13+'Dolny układ jezdny'!$D$19*O21)/'Dolny układ jezdny'!$D$18)","v":855},{"$f":"IF($D$2,('Dolny układ jezdny'!$D$13-3+'Dolny układ jezdny'!$D$19*P21)/'Dolny układ jezdny'!$D$18,('Dolny układ jezdny'!$D$13+'Dolny układ jezdny'!$D$19*P21)/'Dolny układ jezdny'!$D$18)","v":855},{"$f":"IF($D$2,('Dolny układ jezdny'!$D$13-3+'Dolny układ jezdny'!$D$19*Q21)/'Dolny układ jezdny'!$D$18,('Dolny układ jezdny'!$D$13+'Dolny układ jezdny'!$D$19*Q21)/'Dolny układ jezdny'!$D$18)","v":855},"-","-",{"$f":"IF($D$2,('Dolny układ jezdny'!$D$13-3+'Dolny układ jezdny'!$D$19*T21)/'Dolny układ jezdny'!$D$18,('Dolny układ jezdny'!$D$13+'Dolny układ jezdny'!$D$19*T21)/'Dolny układ jezdny'!$D$18)","v":852.33333333333337},{"$f":"IF($D$2,('Dolny układ jezdny'!$D$13-3+'Dolny układ jezdny'!$D$19*U21)/'Dolny układ jezdny'!$D$18,('Dolny układ jezdny'!$D$13+'Dolny układ jezdny'!$D$19*U21)/'Dolny układ jezdny'!$D$18)","v":853.66666666666663},{"$f":"IF($D$2,('Dolny układ jezdny'!$D$13-3+'Dolny układ jezdny'!$D$19*V21)/'Dolny układ jezdny'!$D$18,('Dolny układ jezdny'!$D$13+'Dolny układ jezdny'!$D$19*V21)/'Dolny układ jezdny'!$D$18)","v":853.66666666666663},{"$f":"IF($D$2,('Dolny układ jezdny'!$D$13-3+'Dolny układ jezdny'!$D$19*W21)/'Dolny układ jezdny'!$D$18,('Dolny układ jezdny'!$D$13+'Dolny układ jezdny'!$D$19*W21)/'Dolny układ jezdny'!$D$18)","v":852.33333333333337},{"$f":"IF($D$2,('Dolny układ jezdny'!$D$13-3+'Dolny układ jezdny'!$D$19*X21)/'Dolny układ jezdny'!$D$18,('Dolny układ jezdny'!$D$13+'Dolny układ jezdny'!$D$19*X21)/'Dolny układ jezdny'!$D$18)","v":852.33333333333337},{"$f":"W5","v":852.33333333333337},{"$f":"X5","v":852.33333333333337},{"$f":"IF($D$2,('Dolny układ jezdny'!$D$13-3+'Dolny układ jezdny'!$D$19*AA21)/'Dolny układ jezdny'!$D$18,('Dolny układ jezdny'!$D$13+'Dolny układ jezdny'!$D$19*AA21)/'Dolny układ jezdny'!$D$18)","v":851.66666666666663},{"$f":"IF($D$2,('Dolny układ jezdny'!$D$13-3+'Dolny układ jezdny'!$D$19*AB21)/'Dolny układ jezdny'!$D$18,('Dolny układ jezdny'!$D$13+'Dolny układ jezdny'!$D$19*AB21)/'Dolny układ jezdny'!$D$18)","v":851.66666666666663},{"$f":"IF($D$2,('Dolny układ jezdny'!$D$13-3+'Dolny układ jezdny'!$D$19*AC21)/'Dolny układ jezdny'!$D$18,('Dolny układ jezdny'!$D$13+'Dolny układ jezdny'!$D$19*AC21)/'Dolny układ jezdny'!$D$18)","v":851.66666666666663},{"$f":"IF($D$2,('Dolny układ jezdny'!$D$13-3+'Dolny układ jezdny'!$D$19*AD21)/'Dolny układ jezdny'!$D$18,('Dolny układ jezdny'!$D$13+'Dolny układ jezdny'!$D$19*AD21)/'Dolny układ jezdny'!$D$18)","v":851.66666666666663},{"$f":"IF($D$2,('Dolny układ jezdny'!$D$13-3+'Dolny układ jezdny'!$D$19*AE21)/'Dolny układ jezdny'!$D$18,('Dolny układ jezdny'!$D$13+'Dolny układ jezdny'!$D$19*AE21)/'Dolny układ jezdny'!$D$18)","v":851.66666666666663},{"$f":"IF($D$2,('Dolny układ jezdny'!$D$13-3+'Dolny układ jezdny'!$D$19*AF21)/'Dolny układ jezdny'!$D$18,('Dolny układ jezdny'!$D$13+'Dolny układ jezdny'!$D$19*AF21)/'Dolny układ jezdny'!$D$18)","v":855},{"$f":"IF($D$2,('Dolny układ jezdny'!$D$13-3+'Dolny układ jezdny'!$D$19*AG21)/'Dolny układ jezdny'!$D$18,('Dolny układ jezdny'!$D$13+'Dolny układ jezdny'!$D$19*AG21)/'Dolny układ jezdny'!$D$18)","v":855},{"$f":"IF($D$2,('Dolny układ jezdny'!$D$13-3+'Dolny układ jezdny'!$D$19*AH21)/'Dolny układ jezdny'!$D$18,('Dolny układ jezdny'!$D$13+'Dolny układ jezdny'!$D$19*AH21)/'Dolny układ jezdny'!$D$18)","v":847.66666666666663},{"$f":"IF($D$2,('Dolny układ jezdny'!$D$13-3+'Dolny układ jezdny'!$D$19*AI21)/'Dolny układ jezdny'!$D$18,('Dolny układ jezdny'!$D$13+'Dolny układ jezdny'!$D$19*AI21)/'Dolny układ jezdny'!$D$18)","v":852.33333333333337},{"$f":"IF($D$2,('Dolny układ jezdny'!$D$13-3+'Dolny układ jezdny'!$D$19*AJ21)/'Dolny układ jezdny'!$D$18,('Dolny układ jezdny'!$D$13+'Dolny układ jezdny'!$D$19*AJ21)/'Dolny układ jezdny'!$D$18)","v":851},{"$f":"IF($D$2,('Dolny układ jezdny'!$D$13-3+'Dolny układ jezdny'!$D$19*AK21)/'Dolny układ jezdny'!$D$18,('Dolny układ jezdny'!$D$13+'Dolny układ jezdny'!$D$19*AK21)/'Dolny układ jezdny'!$D$18)","v":852.33333333333337},5,{"$f":"'Dolny układ jezdny'!G11","v":851}]
[6,"VISTA 18mm",null,true,null,"TAK/NIE",null,null,null,"WD",6,{"$f":"'Dolny układ jezdny'!$D$12-40","v":2460},{"$f":"'Dolny układ jezdny'!$D$12-40","v":2460},{"$f":"'Dolny układ jezdny'!$D$12-40","v":2460},{"$f":"'Dolny układ jezdny'!$D$12-40","v":2460},{"$f":"'Dolny układ jezdny'!$D$12-40","v":2460},{"$f":"'Dolny układ jezdny'!$D$12-40","v":2460},"-","-",{"$f":"'Dolny układ jezdny'!$D$12-40","v":2460},{"$f":"'Dolny układ jezdny'!$D$12-40","v":2460},{"$f":"'Dolny układ jezdny'!$D$12-40","v":2460},{"$f":"'Dolny układ jezdny'!$D$12-40","v":2460},{"$f":"'Dolny układ jezdny'!$D$12-40","v":2460},2460,2460,{"$f":"'Dolny układ jezdny'!$D$12-40","v":2460},{"$f":"'Dolny układ jezdny'!$D$12-40","v":2460},{"$f":"'Dolny układ jezdny'!$D$12-40","v":2460},{"$f":"'Dolny układ jezdny'!$D$12-40","v":2460},{"$f":"'Dolny układ jezdny'!$D$12-40","v":2460},{"$f":"'Dolny układ jezdny'!$D$12-40","v":2460},{"$f":"'Dolny układ jezdny'!$D$12-40","v":2460},{"$f":"'Dolny układ jezdny'!$D$12-40","v":2460},{"$f":"'Dolny układ jezdny'!$D$12-40","v":2460},{"$f":"'Dolny układ jezdny'!$D$12-40","v":2460},{"$f":"'Dolny układ jezdny'!$D$12-12","v":2488},6,{"$f":"'Dolny układ jezdny'!G12","v":2460}]
[7,"COTE 18mm",null,"Wybór łącznika",null,null,null,null,null,"SW18",7,{"$f":"L5-7","v":844},{"$f":"M5-36","v":819},"-",{"$f":"O5-36","v":819},{"$f":"P5-30","v":825},"-","-","-","-","-","-",{"$f":"W5-31","v":821.33333333333337},{"$f":"X5-31","v":821.33333333333337},821.33333333333337,821.33333333333337,{"$f":"AA5-36","v":815.66666666666663},"-",{"$f":"AC5-36","v":815.66666666666663},{"$f":"AD5-31","v":820.66666666666663},{"$f":"AE5-31","v":820.66666666666663},{"$f":"AF5-31","v":824},{"$f":"AG5-31","v":824},"-","-","-",{"$f":"AK5","v":852.33333333333337},7,{"$f":"'Dolny układ jezdny'!G13","v":844}]
[8,"COTE 16mm",null,null,1,"A-T18-300-XX",1,"A",null,"SW16",8,"-","-",{"$f":"N5-21","v":834},"-","-","-","-","-","-","-","-","-","-","-","-","-",{"$f":"AB5-21","v":830.66666666666663},"-",{"$f":"W8","v":"-"},{"$f":"X8","v":"-"},"-","-","-","-","-",{"$f":"AK5","v":852.33333333333337},8,{"$f":"'Dolny układ jezdny'!G14","v":"-"}]
[9,"NERO 18mm",null,null,null,"A-H18-300-XX",2,"A",null,"SW12",9,"-","-","-","-","-",{"$f":"Q5-7","v":848},"-","-","-","-","-","-","-","-","-","-","-","-","-","-","-","-","-","-","-","-",9,{"$f":"'Dolny układ jezdny'!G15","v":"-"}]
[10,"CARO 18mm",null,null,null,"A-H16-300-XX",3,"B",null,"SW10",10,"-","-","-","-","-","-","-","-",{"$f":"T5-21","v":831.33333333333337},{"$f":"U5-43","v":810.66666666666663},{"$f":"V5-43","v":810.66666666666663},"-","-","-","-","-","-","-","-","-","-","-",{"$f":"AH5-27","v":820.66666666666663},{"$f":"AI5-21","v":831.33333333333337},{"$f":"AJ5-36","v":815},"-",10,{"$f":"'Dolny układ jezdny'!G16","v":"-"}]
[11,"MITO/MITO PLUS",null,"-",null,"A-HRS18-YYY-XX",4,"C",null,"SW4",11,"-","-","-",{"$f":"O5-24","v":831},"-",{"$f":"Q5-32","v":823},"-","-",{"$f":"T5-24","v":828.33333333333337},{"$f":"U10-3","v":807.66666666666663},{"$f":"V10-3","v":807.66666666666663},"-",{"$f":"X5-23","v":829.33333333333337},"-",829.33333333333337,"-","-",{"$f":"AC5-23","v":828.66666666666663},"-",{"$f":"AE5-23","v":828.66666666666663},"-",{"$f":"AG5-23","v":832},{"$f":"AH5-30","v":817.66666666666663},{"$f":"AI5-24","v":828.33333333333337},{"$f":"AJ5-39","v":812},"-",11,{"$f":"'Dolny układ jezdny'!G17","v":"-"}]
[12,{"$f":"Opisy!A75","v":"------RÁMOWE 18mm--------------"},null,"-",null,"A-HR18-300-XX",5,"C",null,"WW18",12,{"$f":"L6-3","v":2457},{"$f":"M6-3","v":2457},"-",{"$f":"O6-69","v":2391},{"$f":"P6-3","v":2457},"-","-","-","-","-","-",{"$f":"M12","v":2457},{"$f":"O12","v":2391},2457,2391,{"$f":"W12","v":2457},"-",{"$f":"X12","v":2391},2457,2391,{"$f":"W12","v":2457},{"$f":"X12","v":2391},"-","-","-",{"$f":"AK6","v":2488},12,{"$f":"'Dolny układ jezdny'!G18","v":2457}]
[13,"NOVO S 18/4mm",null,"-",null,"A-HRS10-YYY-XX",6,"D",null,"WW16",13,"-","-",{"$f":"N6-3","v":2457},"-","-","-","-","-","-","-","-","-","-","-","-","-",{"$f":"N13","v":2457},"-","-","-","-","-","-","-","-",{"$f":"AK6","v":2488},13,{"$f":"'Dolny układ jezdny'!G19","v":"-"}]
[14,"VISTA 18/4mm",null,null,null,"A-HR10-YYY-XX",7,"D",null,"WW12",14,"-","-","-","-","-",{"$f":"Q6-3","v":2457},"-","-","-","-","-","-","-","-","-","-","-","-","-","-","-","-","-","-","-","-",14,{"$f":"'Dolny układ jezdny'!G20","v":"-"}]
[15,"COTE 18/4mm",null,null,null,"A-HR10FL-YYY-XX",8,"E",null,"WW10",15,"-","-","-","-","-","-","-","-",{"$f":"T6-60","v":2400},{"$f":"T15","v":2400},{"$f":"U15","v":2400},"-","-","-","-","-","-","-","-","-","-","-",{"$f":"AH6-60","v":2400},{"$f":"AI6-60","v":2400},{"$f":"AJ6-5","v":2455},"-",15,{"$f":"'Dolny układ jezdny'!G21","v":"-"}]
[16,"NERO 18/4mm",null,null,null,null,null,null,null,"WW4",16,"-","-","-",{"$f":"O6-61","v":2399},"-",{"$f":"Q6-5","v":2455},"-","-",{"$f":"T6-61","v":2399},{"$f":"T16","v":2399},{"$f":"U16","v":2399},"-",{"$f":"O16","v":2399},"-",2399,"-","-",{"$f":"X16","v":2399},"-",2399,"-",2399,{"$f":"AH6-61","v":2399},{"$f":"AI6-61","v":2399},{"$f":"AJ6-6","v":2454},"-",16,{"$f":"'Dolny układ jezdny'!G22","v":"-"}]
[17,"CARO 18/4mm",null,null,null,null,null,null,null,"DR",17,{"$f":"L6","v":2460},2460,2460,2460,2460,2460,"-","-",2460,2460,2460,2460,2460,2460,2460,2460,2460,2460,2460,2460,2460,2460,{"$f":"AH6","v":2460},2460,2460,"-",17,{"$f":"'Dolny układ jezdny'!G23","v":2460}]
[18,{"$f":"Opisy!A76","v":"------RÁMOWE 10mm--------------"},null,null,null,null,null,null,null,"DLP",18,{"$f":"L5-53","v":798},{"$f":"M5-52","v":803},{"$f":"N5-52","v":803},{"$f":"O5-52","v":803},{"$f":"P5-52","v":803},{"$f":"Q5-52","v":803},"-","-",{"$f":"T5-38","v":814.33333333333337},{"$f":"U10-17","v":793.66666666666663},{"$f":"V10-17","v":793.66666666666663},{"$f":"W5-55","v":797.33333333333337},{"$f":"X5-55","v":797.33333333333337},797.33333333333337,797.33333333333337,{"$f":"AA5-52","v":799.66666666666663},{"$f":"AB5-52","v":799.66666666666663},799.66666666666663,{"$f":"AD5-55","v":796.66666666666663},796.66666666666663,800,{"$f":"AG5-55","v":800},{"$f":"AH5-44","v":803.66666666666663},{"$f":"AI5-38","v":814.33333333333337},{"$f":"AJ5-53","v":798},"-",18,{"$f":"'Dolny układ jezdny'!G24","v":798}]
[19,"NOVO 10/4mm",null,null,null,null,null,null,null,"Skrzydło na płycie [kg]",19,{"$f":"L22+SUM(L29:L41)","v":24.893525280000002},{"$f":"M22+SUM(M29:M41)","v":24.795842280000002},{"$f":"N22+SUM(N29:N41)","v":22.666212960000003},{"$f":"O22+SUM(O29:O41)","v":24.46080164},{"$f":"P22+SUM(P29:P41)","v":24.930842999999999},"-","-","-",{"$f":"T22+SUM(T29:T41)","v":14.970416666666667},14.982783333333334,15.204183333333333,{"$f":"W22+SUM(W29:W41)","v":25.06381056},24.725158613333331,25.06381056,24.725158613333331,24.796361879999999,25.20766368,23.821330439999997,{"$f":"AD22+SUM(AD29:AD41)","v":25.109178480000001},{"$f":"AE22+SUM(AE29:AE41)","v":24.770794906666666},25.30545888,24.965733440000001,{"$f":"AH22+SUM(AH29:AH41)","v":14.863163333333333},14.926136666666668,15.290629000000001,{"$f":"AK22+SUM(AK29:AK41)","v":24.065955519999999},19,{"$f":"'Dolny układ jezdny'!G25","v":24.893525280000002}]
[20,"FORM 10/4mm",null,null,null,null,null,null,null,"Skrzydło na szkle [kg]",20,"-","-","-",{"$f":"O23+SUM(O29:O41)","v":24.934938800000001},"-",{"$f":"Q22+Q23+SUM(Q29:Q41)","v":40.43995984},"-","-",{"$f":"T23+SUM(T29:T41)","v":24.856499333333335},{"$f":"U23+SUM(U29:U41)","v":24.621097466666669},{"$f":"V23+SUM(V29:V41)","v":24.842497466666668},"-",{"$f":"X23+SUM(X29:X41)","v":25.092252800000001},"-",25.092252800000001,"-","-",{"$f":"AC23+SUM(AC29:AC41)","v":24.321718933333329},"-",{"$f":"AE23+SUM(AE29:AE41)","v":25.137765599999998},"-",{"$f":"AG23+SUM(AG29:AG41)","v":25.333321600000001},{"$f":"AH23+SUM(AH29:AH41)","v":24.621365466666663},{"$f":"AI23+SUM(AI29:AI41)","v":24.812219333333335},{"$f":"AJ23+SUM(AJ29:AJ41)","v":25.203171600000001},{"$f":"AK23+SUM(AK29:AK41)","v":21.436404906666667},20,{"$f":"'Dolny układ jezdny'!G26","v":"-"}]
[21,"TRAFO 10/4mm",null,null,null,null,null,null,null,"Szerokość zakładki",21,28,34,34,34,34,34,"-","-",30,32,32,30,30,30,30,29,29,29,29,29,34,34,23,30,28,30,21,{"$f":"HLOOKUP($B$44,$L$1:$AK$46,AL21,FALSE)","v":28}]
[22,"FLAT LINE 10/4mm",null,null,null,null,null,null,null,"Waga wypełnienia z płyty",22,{"$f":"L7*L12*18*$L$25/1000000000","v":23.142581280000002},{"$f":"M7*M12*18*$L$25/1000000000","v":22.457078280000001},{"$f":"N8*N13*16*$L$25/1000000000","v":20.327448960000002},{"$f":"O7*O12*18*$L$25/1000000000","v":21.85383564},{"$f":"P7*P12*18*$L$25/1000000000","v":22.621599},{"$f":"Q9*Q14*12*$L$25/1000000000","v":15.50150784},"-","-",{"$f":"T10*T15*10*$L$25/1000000000","v":12.370240000000001},{"$f":"U10*U15*10*$L$25/1000000000","v":12.062720000000001},{"$f":"V10*V15*10*$L$25/1000000000","v":12.062720000000001},{"$f":"W7*W12*18*$L$25/1000000000","v":22.52105856},{"$f":"X7*X12*18*$L$25/1000000000","v":21.916097279999999},22.52105856,21.916097279999999,{"$f":"AA7*AA12*18*$L$25/1000000000","v":22.36567788},{"$f":"AB8*AB13*18*$L$25/1000000000","v":22.77697968},{"$f":"AC7*AC12*18*$L$25/1000000000","v":21.764890439999999},{"$f":"AD7*AD12*18*$L$25/1000000000","v":22.50277848},{"$f":"AE7*AE12*18*$L$25/1000000000","v":21.898308239999999},{"$f":"AF7*AF12*18*$L$25/1000000000","v":22.594178880000001},{"$f":"AG7*AG12*18*$L$25/1000000000","v":21.98725344},{"$f":"AH10*AH15*10*$L$25/1000000000","v":12.21152},{"$f":"AI10*AI15*10*$L$25/1000000000","v":12.370240000000001},{"$f":"AJ10*AJ15*10*$L$25/1000000000","v":12.405115},{"$f":"AK7*AK12*18*$L$25/1000000000","v":23.665955520000001},22,{"$f":"HLOOKUP($B$44,$L$1:$AK$46,AL22,FALSE)","v":23.142581280000002}]
[23,"ARCO 10/4mm",null,"Warunek poprawnego wyboru łącznika",null,null,null,null,null,"Waga wypełnienia ze szkła",23,"-","-","-",{"$f":"O11*O16*4*$L$27/1000000000","v":22.327972800000001},"-",{"$f":"Q11*Q16*4*$L$27/1000000000","v":22.629207999999998},"-","-",{"$f":"T11*T16*4*$L$27/1000000000","v":22.256322666666669},{"$f":"U11*U16*4*$L$27/1000000000","v":21.701034133333334},{"$f":"V11*V16*4*$L$27/1000000000","v":21.701034133333334},"-",{"$f":"X11*X16*4*$L$27/1000000000","v":22.283191466666668},"-",22.283191466666668,"-","-",{"$f":"AC11*AC16*4*$L$27/1000000000","v":22.265278933333331},"-",{"$f":"AE11*AE16*4*$L$27/1000000000","v":22.265278933333331},"-",{"$f":"AG11*AG16*4*$L$27/1000000000","v":22.3548416},{"$f":"AH11*AH16*4*$L$27/1000000000","v":21.969722133333331},{"$f":"AI11*AI16*4*$L$27/1000000000","v":22.256322666666669},{"$f":"AJ11*AJ16*4*$L$27/1000000000","v":22.3176576},{"$f":"AK8*AK13*16*$L$25/1000000000","v":21.036404906666668},23,{"$f":"HLOOKUP($B$44,$L$1:$AK$46,AL23,FALSE)","v":"-"}]
[24,"FALDA 10/4mm",null,"Grupy łączników",null,"Łącznik z grupy:","System z grupy:","Test",null,null,24,"Płyta wiórowa - wga 1m3 [kg]",null,null,null,null,null,null,null,null,null,null,null,null,null,null,null,null,null,null,null,null,null,null,null,null,null,24]
[25,{"$f":"Opisy!A158","v":"Novinky"},null,"A","18mm",{"$f":"VLOOKUP(E8,G8:H15,2,FALSE)","v":"A"},{"$f":"HLOOKUP(B44,$L$1:$AK$42,42,FALSE)","v":"A"},{"$f":"IF(F25=G25,1,IF(AND(Lacznik_z_grupy=D29,System_z_grupy=T42),1,0))","v":1},null,null,25,620,null,null,null,null,null,null,null,null,null,null,null,null,null,null,null,null,null,null,null,null,null,null,null,null,null,25]
[26,"LOCA 18mm",null,"B","16 (12+4)mm",null,null,null,null,null,26,"Szkło 4mm - waga 1m3 [kg]",null,null,null,null,null,null,null,null,null,null,null,null,null,null,null,null,null,null,null,null,null,null,null,null,null,26]
[27,"LOCA 18/4mm",null,"C","18/4mm",null,null,null,null,null,27,2800,null,null,null,null,null,null,null,null,null,null,null,null,null,null,null,null,null,null,null,null,null,null,null,null,null,27]
[28,null,null,"D","10/4mm","LICZBA ŁĄCZNIKÓW",{"$f":"'Dolny układ jezdny'!F56","v":2},null,null,null,28,"Okucia - waga 1 kpl.",null,null,null,null,null,null,null,null,null,null,null,null,null,null,null,null,null,null,null,null,null,null,null,null,null,28]
[29,null,null,"E","FlatLine",null,null,null,null,null,29,0.3,0.3,0.3,0.3,0.3,0.3,"-","-",0.3,0.3,0.3,0.3,0.3,0.3,0.3,0.3,0.3,0.3,0.3,0.3,0.3,0.3,0.3,0.3,0.3,0.4,29,{"$f":"HLOOKUP($B$44,$L$1:$AK$46,AL29,FALSE)","v":0.3}]
[30,null,null,null,null,null,null,null,null,null,30,"Aluminium",null,null,null,null,null,null,null,null,null,null,null,null,null,null,null,null,null,null,null,null,null,null,null,null,null,30]
[31,null,null,null,null,null,null,null,"LG18",0.25700000000000001,31,"-","-","-",{"$f":"J31*$O$18/1000","v":0.206371},"-","-","-","-","-","-","-","-",{"$f":"X18*$J$31/1000","v":0.20491466666666669},"-",{"$f":"Z18*$J$31/1000","v":0.20491466666666669},"-","-","-","-",{"$f":"AE18*$J$31/1000","v":0.20474333333333333},"-",{"$f":"AG18*$J$31/1000","v":0.2056},"-","-","-","-",31,{"$f":"HLOOKUP($B$44,$L$1:$AK$46,AL31,FALSE)","v":"-"}]
[32,null,null,null,null,null,null,null,"LD18",0.54500000000000004,32,"-","-","-",{"$f":"J32*$O$18/1000","v":0.43763500000000005},"-","-","-","-","-","-","-","-",{"$f":"X18*$J$32/1000","v":0.43454666666666675},"-",{"$f":"Z18*$J$32/1000","v":0.43454666666666675},"-","-","-","-",{"$f":"AE18*$J$32/1000","v":0.43418333333333331},"-",{"$f":"AG18*$J$32/1000","v":0.43600000000000005},"-","-","-","-",32,{"$f":"HLOOKUP($B$44,$L$1:$AK$46,AL32,FALSE)","v":"-"}]
[33,null,null,null,null,null,null,null,"LG10",0.23599999999999999,33,"-","-","-","-","-","-","-","-",{"$f":"T18*$J$33/1000","v":0.19218266666666667},{"$f":"U18*$J$33/1000","v":0.18730533333333332},{"$f":"V18*$J$33/1000","v":0.18730533333333332},"-","-","-","-","-","-","-","-","-","-","-",{"$f":"AH18*$J$33/1000","v":0.1896653333333333},{"$f":"AI18*$J$33/1000","v":0.19218266666666667},{"$f":"AJ18*0.249/1000","v":0.19870199999999999},"-",33,"-"]
[34,null,null,null,null,null,null,null,"LD10",0.47399999999999998,34,"-","-","-","-","-","-","-","-",{"$f":"T18*$J$34/1000","v":0.38599399999999995},{"$f":"U18*$J$34/1000","v":0.37619799999999998},{"$f":"V18*$J$34/1000","v":0.37619799999999998},"-","-","-","-","-","-","-","-","-","-","-",{"$f":"AH18*$J$34/1000","v":0.380938},{"$f":"AI18*$J$34/1000","v":0.38599399999999995},{"$f":"AJ18*0.494/1000","v":0.39421200000000001},"-",34,"-"]
[35,null,null,null,null,null,null,null,"HRS10",0.26800000000000002,35,"-","-","-","-","-","-","-","-",{"$f":"IF(AND($D$6,$E$8=6),$J$35*$G$28*T18/1000,0)","v":0},{"$f":"IF(AND($D$6,$E$8=6),$J$35*$G$28*U18/1000,0)","v":0},{"$f":"IF(AND($D$6,$E$8=6),$J$35*$G$28*V18/1000,0)","v":0},"-","-","-","-","-","-","-","-","-","-","-",{"$f":"IF(AND($D$6,$E$8=6),$J$35*$G$28*AH18/1000,0)","v":0},{"$f":"IF(AND($D$6,$E$8=6),$J$35*$G$28*AI18/1000,0)","v":0},"-","-",35,"-"]
[36,null,null,null,null,null,null,null,"HR10 lub HR10FL",0.185,36,"-","-","-","-","-","-","-","-",{"$f":"IF(AND($D$6,$E$8=7),$J$36*$G$28*T18/1000,IF(AND(laczniki_tak,Wybrany_lacznik=$G$15),0.75*$J$36*T18*l._lacznikow/1000,0))","v":0},{"$f":"IF(AND($D$6,$E$8=7),$J$36*$G$28*U18/1000,IF(AND(laczniki_tak,Wybrany_lacznik=$G$15),0.75*$J$36*U18*l._lacznikow/1000,0))","v":0},{"$f":"IF(AND($D$6,$E$8=7),$J$36*$G$28*V18/1000,IF(AND(laczniki_tak,Wybrany_lacznik=$G$15),0.75*$J$36*V18*l._lacznikow/1000,0))","v":0},"-","-","-","-","-","-","-","-","-","-","-",{"$f":"IF(AND($D$6,$E$8=7),$J$36*$G$28*AH18/1000,IF(AND(laczniki_tak,Wybrany_lacznik=$G$15),0.75*$J$36*AH18*l._lacznikow/1000,0))","v":0},{"$f":"IF(AND($D$6,$E$8=7),$J$36*$G$28*AI18/1000,IF(AND(laczniki_tak,Wybrany_lacznik=$G$15),0.75*$J$36*AI18*l._lacznikow/1000,0))","v":0},{"$f":"IF(AND($D$6,$E$8=8),0.75*$J$36*$G$28*AJ18/1000,0)","v":0},"-",36,"-"]
[null,null,null,null,null,null,null,null,"C",0.122,37,{"$f":"2*$J$37*L18/1000","v":0.194712},{"$f":"2*$J$37*M18/1000","v":0.195932},{"$f":"2*$J$37*N18/1000","v":0.195932},"-",{"$f":"2*$J$37*P18/1000","v":0.195932},{"$f":"2*$J$37*Q18/1000","v":0.195932},"-","-","-","-","-",{"$f":"2*$J$37*W18/1000","v":0.19454933333333335},"-",{"$f":"2*$J$37*Y18/1000","v":0.19454933333333335},"-",{"$f":"2*$J$37*AA18/1000","v":0.19511866666666666},{"$f":"2*$J$37*AB18/1000","v":0.19511866666666666},"-",{"$f":"2*$J$37*AD18/1000","v":0.19438666666666665},"-",{"$f":"2*$J$37*AF18/1000","v":0.19519999999999998},"-","-","-","-","-",37,0.194712]
[null,null,null,null,null,null,null,null,"łącznik HRS18",0.34799999999999998,38,"-","-","-",{"$f":"IF(AND($D$6,$E$8=4),$J$38*$G$28*O18/1000,0)","v":0},"-","-","-","-","-","-","-","-",{"$f":"IF(AND($D$6,$E$8=4),$J$38*$G$28*X18/1000,0)","v":0},"-",{"$f":"IF(AND($D$6,$E$8=4),$J$38*$G$28*Z18/1000,0)","v":0},"-","-",{"$f":"IF(AND($D$6,$E$8=4),$J$38*$G$28*AC18/1000,0)","v":0},"-",{"$f":"IF(AND($D$6,$E$8=4),$J$38*$G$28*AE18/1000,0)","v":0},"-",{"$f":"IF(AND($D$6,$E$8=4),$J$38*$G$28*AG18/1000,0)","v":0},"-","-","-","-",38,"-"]
[null,null,null,null,null,null,null,null,"łącznik HR18",0.20899999999999999,39,"-","-","-",{"$f":"IF(AND($D$6,$E$8=5),$J$39*$G$28*O18/1000,0)","v":0},"-","-","-","-","-","-","-","-",{"$f":"IF(AND($D$6,$E$8=5),$J$39*$G$28*X18/1000,0)","v":0},"-",{"$f":"IF(AND($D$6,$E$8=5),$J$39*$G$28*Z18/1000,0)","v":0},"-","-",{"$f":"IF(AND($D$6,$E$8=5),$J$39*$G$28*AC18/1000,0)","v":0},"-",{"$f":"IF(AND($D$6,$E$8=5),$J$39*$G$28*AE18/1000,0)","v":0},"-",{"$f":"IF(AND($D$6,$E$8=5),$J$39*$G$28*AG18/1000,0)","v":0},"-","-","-","-",39,"-"]
[null,null,null,null,null,null,null,null,"łącznik H18",0.112,40,{"$f":"IF(AND($D$6,$E$8<3),$J$40*$G$28*L18/1000,0)","v":0.17875200000000002},{"$f":"IF(AND($D$6,$E$8<3),$J$40*$G$28*M18/1000,0)","v":0.179872},{"$f":"IF(AND($D$6,OR($E$8=3,$E$8=1)),$J$40*$G$28*N18/1000,0)","v":0.179872},null,{"$f":"IF(AND($D$6,$E$8<3),$J$40*$G$28*P18/1000,0)","v":0.179872},{"$f":"IF(AND($D$6,OR($E$8=3,$E$8=1)),$J$40*$G$28*Q18/1000,0)","v":0.179872},"-","-",null,null,null,{"$f":"IF(AND($D$6,$E$8<3),$J$40*$G$28*W18/1000,0)","v":0.17860266666666669},null,{"$f":"IF(AND($D$6,$E$8<3),$J$40*$G$28*Y18/1000,0)","v":0.17860266666666669},null,{"$f":"IF(AND($D$6,$E$8<3),$J$40*$G$28*AA18/1000,0)","v":0.1791253333333333},{"$f":"IF(AND($D$6,OR($E$8=3,$E$8=1)),$J$40*$G$28*AB18/1000,0)","v":0.1791253333333333},null,{"$f":"IF(AND($D$6,$E$8<3),$J$40*$G$28*AD18/1000,0)","v":0.17845333333333332},null,{"$f":"IF(AND($D$6,$E$8<3),$J$40*$G$28*AF18/1000,0)","v":0.17920000000000003},null,null,null,"-","-",40,0.17875200000000002]
[null,null,null,null,null,null,null,null,"Rączka",null,41,{"$f":"2*L4*L17/1000","v":1.07748},{"$f":"2*M4*M17/1000","v":1.66296},1.66296,1.66296,1.63344,1.63344,"-","-",1.722,2.0565600000000002,2.2779600000000002,1.8695999999999999,1.8695999999999999,{"$f":"2*Y4*Y17/1000","v":2.3714400000000002},2.3714400000000002,1.7564399999999998,1.7564399999999998,1.7564399999999998,{"$f":"2*AD4*AD17/1000","v":1.9335600000000002},1.9335600000000002,2.03688,2.03688,1.78104,1.6777200000000001,1.9926000000000001,"-",41,1.07748]
[null,null,null,null,null,null,null,null,"System należy do grupy łączników",null,42,"A","A","B","C","A","B","-","-","D","D","D","A","C","A","C","A","B","C","A","C","A","C","D","D","E","F",42,"A"]
[null,null,null,null,null,null,null,null,"Wys. wyp. z płyty bez łączników",null,43,{"$f":"L12","v":2457},{"$f":"M12","v":2457},{"$f":"N13","v":2457},{"$f":"O12","v":2391},{"$f":"P12","v":2457},{"$f":"Q14","v":2457},"-","-",{"$f":"T15","v":2400},{"$f":"U15","v":2400},{"$f":"V15","v":2400},{"$f":"W12","v":2457},{"$f":"X12","v":2391},{"$f":"Y12","v":2457},{"$f":"Z12","v":2391},{"$f":"AA12","v":2457},{"$f":"AB13","v":2457},{"$f":"AC12","v":2391},{"$f":"AD12","v":2457},2391,2457,2391,{"$f":"AH15","v":2400},{"$f":"AI15","v":2400},{"$f":"AJ15","v":2455},"-",43,2457]
["Wyb. Syst.",1,{"$f":"VLOOKUP(B44,A1:B27,2,FALSE)","v":"ERGO 18mm"},null,null,null,null,null,"Wys. wyp. łączonych (płyta)",null,44,{"$f":"IF(AND($D$6,$F$25=L42,$G$25=L42),(L12-$G$28)/($G$28+1),$D$11)","v":818.33333333333337},{"$f":"IF(AND($D$6,$F$25=M42,$G$25=M42),(M12-$G$28)/($G$28+1),$D$11)","v":818.33333333333337},{"$f":"IF(OR(AND($D$6,$F$25=N42,$G$25=N42),(AND(laczniki_tak,Wybrany_lacznik=1,System_z_grupy=N42))),(N43-$G$28)/($G$28+1),$D$11)","v":"-"},{"$f":"IF(AND($D$6,$F$25=O42,$G$25=O42),IF($E$8=4,(O43-$G$28*19)/($G$28+1),(O43-$G$28*9)/($G$28+1)),$D$11)","v":"-"},{"$f":"IF(AND($D$6,$F$25=P42,$G$25=P42),(P43-$G$28)/($G$28+1),$D$11)","v":818.33333333333337},{"$f":"N44","v":"-"},"-","-",{"$f":"IF(AND($D$6,OR(AND($F$25=T42,$G$25=T42),AND(System_z_grupy=$D$28,Lacznik_z_grupy=$D$29))),IF($E$8=6,(T43-$G$28*7.5)/($G$28+1),(T43-$G$28)/(1+$G$28)),$D$11)","v":"-"},{"$f":"IF(AND($D$6,OR(AND($F$25=U42,$G$25=U42),AND(System_z_grupy=$D$28,Lacznik_z_grupy=$D$29))),IF($E$8=6,(U43-$G$28*7.5)/($G$28+1),(U43-$G$28)/(1+$G$28)),$D$11)","v":"-"},{"$f":"IF(AND($D$6,OR(AND($F$25=V42,$G$25=V42),AND(System_z_grupy=$D$28,Lacznik_z_grupy=$D$29))),IF($E$8=6,(V43-$G$28*7.5)/($G$28+1),(V43-$G$28)/(1+$G$28)),$D$11)","v":"-"},{"$f":"IF(AND($D$6,$F$25=W42,$G$25=W42),(W43-$G$28)/($G$28+1),$D$11)","v":818.33333333333337},{"$f":"O44","v":"-"},{"$f":"IF(AND($D$6,$F$25=Y42,$G$25=Y42),(Y43-$G$28)/($G$28+1),$D$11)","v":818.33333333333337},{"$f":"O44","v":"-"},{"$f":"IF(AND($D$6,$F$25=AA42,$G$25=AA42),(AA43-$G$28)/($G$28+1),$D$11)","v":818.33333333333337},{"$f":"N44","v":"-"},{"$f":"O44","v":"-"},{"$f":"IF(AND($D$6,$F$25=AD42,$G$25=AD42),(AD12-$G$28)/($G$28+1),$D$11)","v":818.33333333333337},{"$f":"IF(AND($D$6,$F$25=AE42,$G$25=AE42),IF($E$8=4,(AE43-$G$28*19)/($G$28+1),(AE43-$G$28*9)/($G$28+1)),$D$11)","v":"-"},{"$f":"IF(AND($D$6,$F$25=AF42,$G$25=AF42),(AF12-$G$28)/($G$28+1),$D$11)","v":818.33333333333337},{"$f":"IF(AND($D$6,$F$25=AG42,$G$25=AG42),IF($E$8=4,(AG43-$G$28*19)/($G$28+1),(AG43-$G$28*9)/($G$28+1)),$D$11)","v":"-"},{"$f":"V44","v":"-"},{"$f":"V44","v":"-"},{"$f":"IF(AND(laczniki_tak,H25=1,Wybrany_lacznik=G15),(AJ43-l._lacznikow*1)/(l._lacznikow+1),D11)","v":"-"},"-",44,818.33333333333337]
[null,null,null,null,null,null,null,null,"Wys. wyp. 4mm bez łączników",null,45,"-","-","-",{"$f":"O16","v":2399},"-",2455,"-","-",2399,2399,2399,"-",2399,{"$f":"Y16","v":"-"},2399,"-","-",{"$f":"AC16","v":2399},{"$f":"AD16","v":"-"},2399,"-",2399,2399,2399,{"$f":"AJ16","v":2454},"-",45,"-"]
[null,null,null,null,null,null,null,null,"Wys. wyp. łączonych (szkło)",null,46,"-","-","-",{"$f":"IF(AND($D$6,$F$25=O42,$G$25=O42),IF($E$8=4,(O45-$G$28*11)/($G$28+1),(O45-$G$28)/($G$28+1)),$D$11)","v":"-"},"-",{"$f":"IF(Q44=D11,D11,Q44-1)","v":"-"},"-","-",{"$f":"IF(AND($D$6,OR(AND($F$25=T42,$G$25=T42),AND(System_z_grupy=$D$28,Lacznik_z_grupy=$D$29))),IF($E$8=6,(T45-$G$28*10)/($G$28+1),(T45-$G$28*4)/(1+$G$28)),$D$11)","v":"-"},{"$f":"IF(AND($D$6,OR(AND($F$25=U42,$G$25=U42),AND(System_z_grupy=$D$28,Lacznik_z_grupy=$D$29))),IF($E$8=6,(U45-$G$28*10)/($G$28+1),(U45-$G$28*4)/(1+$G$28)),$D$11)","v":"-"},{"$f":"IF(AND($D$6,OR(AND($F$25=V42,$G$25=V42),AND(System_z_grupy=$D$28,Lacznik_z_grupy=$D$29))),IF($E$8=6,(V45-$G$28*10)/($G$28+1),(V45-$G$28*4)/(1+$G$28)),$D$11)","v":"-"},"-",{"$f":"O46","v":"-"},"-",{"$f":"O46","v":"-"},"-","-",{"$f":"O46","v":"-"},"-",{"$f":"IF(AND($D$6,$F$25=AE42,$G$25=AE42),IF($E$8=4,(AE45-$G$28*11)/($G$28+1),(AE45-$G$28)/($G$28+1)),$D$11)","v":"-"},"-",{"$f":"IF(AND($D$6,$F$25=AG42,$G$25=AG42),IF($E$8=4,(AG45-$G$28*11)/($G$28+1),(AG45-$G$28)/($G$28+1)),$D$11)","v":"-"},{"$f":"V46","v":"-"},{"$f":"V46","v":"-"},{"$f":"IF(AND(laczniki_tak,H25=1,Wybrany_lacznik=G15),(AJ45-l._lacznikow*4)/(l._lacznikow+1),D11)","v":"-"},"-",46,"-"]

{"sheet":"OVERLINE","index":2,"n_rows":70,"n_cols":13,"rows_kept":70,"cut":false,"hidden":false,"merged":[[31,8,31,10],[13,6,25,8],[13,2,25,5],[30,4,30,6],[33,4,33,6],[32,4,32,6],[31,4,31,6],[39,11,39,12],[39,5,39,6],[43,7,43,8],[20,12,21,13],[16,12,17,13],[18,12,19,13],[34,4,34,6],[16,11,17,11],[18,11,19,11],[20,9,21,9],[20,10,21,10],[20,11,21,11],[16,9,17,9],[16,10,17,10],[18,10,19,10],[18,9,19,9],[37,7,37,12],[43,9,43,10],[43,11,43,12],[57,5,57,6],[53,7,53,8],[57,9,57,10],[57,11,57,12],[43,5,43,6],[39,7,39,8],[52,5,52,12],[53,5,53,6],[57,7,57,8],[53,9,53,10],[53,11,53,12],[38,5,38,12],[39,9,39,10],[62,2,63,9],[48,10,49,11],[48,12,49,12],[62,10,63,11],[62,12,63,12],[51,7,51,12],[48,2,49,9]]}
[]
[]
[]
[]
[]
[]
[]
[]
[null,null,null,"1.",{"$f":"Opisy!A15","v":"Vyber profil"}]
[]
[]
[null,null,null,"2.",{"$f":"Opisy!A81","v":"Rozmery podľa:"}]
[]
[null,null,{"$f":"Opisy!A82","v":"dutiny"},null,null,null,{"$f":"Opisy!A83","v":"Korpusu skrine"}]
[]
[]
[null,null,null,null,null,null,null,null,null,{"$f":"Opisy!A84","v":"Výška:"},2300,"mm",{"$f":"Opisy!A87","v":"Maximálne 3000mm"}]
[]
[null,null,null,null,null,null,null,null,null,{"$f":"Opisy!A85","v":"Šírka: "},2000,"mm",{"$f":"Opisy!A88","v":"Maximálne 4050mm"}]
[]
[null,null,null,null,null,null,null,null,null,{"$f":"Opisy!A86","v":"Hĺbka:"},700,"mm",{"$f":"Opisy!A141","v":"Minimum 300mm"}]
[]
[]
[]
[]
[]
[]
[]
[null,null,null,"3.",{"$f":"Opisy!A154","v":"Ostatné rozmery:"}]
[]
[null,null,null,null,{"$f":"Opisy!A89","v":"Hrúbka DTD na korpus Gp :"},null,null,18,{"$f":"Opisy!A93","v":"mm (minimum 16 mm)"}]
[null,null,null,null,{"$f":"Opisy!A148","v":"Hrúbka horného panelu:"},null,null,null,{"$f":"IF(Grub.plyty.korp>Grub.wien.gorn,Opisy!A153,Opisy!A50)","v":"mm"}]
[null,null,null,null,{"$f":"Opisy!A91","v":"Hrúbka DTD dverí Gd:"},null,null,18,{"$f":"Opisy!A95","v":"mm (16 - 22 mm)"}]
[null,null,null,null,{"$f":"Opisy!A90","v":"Výška sokla Hc :"},null,null,100,{"$f":"Opisy!A94","v":"mm (minimum 50 mm)"}]
[null,null,null,null,{"$f":"Opisy!A92","v":"Šírka prekritia Z:"},null,null,20,{"$f":"Opisy!A96","v":"mm (minimum 20 mm)"}]
[]
[]
[null,null,null,null,null,null,null,{"$f":"IF(M49=\"-\",\" \",IF(M49>50,Opisy!$A$146,\" \"))","v":" "}]
[null,null,null,null,null,{"$f":"Opisy!A98","v":"Rozmery skrine - naložené dvere"}]
[null,null,null,null,null,{"$f":"Opisy!A99","v":"Korpus:"},null,{"$f":"Opisy!A108","v":"Rozmer sokla:"},null,{"$f":"Opisy!A109","v":"Ľavý bok:"},null,{"$f":"Opisy!A111","v":"Zvyslé delenie:"}]
[null,null,null,null,null,{"$f":"Opisy!A100","v":"Výška Ws:"},{"$f":"IF(OR(Wys.wprowadzana>3000,Szer.wprowadzana>4050,Gleb.wprowadzana<300,Wys.cokolu<50),\"-\",'Overline - Obliczenia'!P4)","v":2275},{"$f":"J17","v":"Výška:"},{"$f":"IF(OR(Wys.wprowadzana>3000,Szer.wprowadzana>4050,Gleb.wprowadzana<300,Wys.cokolu<50),\"-\",'Overline - Obliczenia'!R4)","v":100},{"$f":"J17","v":"Výška:"},{"$f":"IF(OR(Wys.wprowadzana>3000,Szer.wprowadzana>4050,Gleb.wprowadzana<300,Wys.cokolu<50),\"-\",'Overline - Obliczenia'!T4)","v":2275},{"$f":"F45","v":"Výška Wu:"},{"$f":"IF(OR(Wys.wprowadzana>3000,Szer.wprowadzana>4050,Gleb.wprowadzana<300,Wys.cokolu<50),\"-\",'Overline - Obliczenia'!V4)","v":2094}]
[null,null,null,null,null,{"$f":"Opisy!A101","v":"Šírka Ss:"},{"$f":"IF(OR(Wys.wprowadzana>3000,Szer.wprowadzana>4050,Gleb.wprowadzana<300,Wys.cokolu<50),\"-\",'Overline - Obliczenia'!P5)","v":1993},{"$f":"J19","v":"Šírka: "},{"$f":"IF(OR(Wys.wprowadzana>3000,Szer.wprowadzana>4050,Gleb.wprowadzana<300,Wys.cokolu<50),\"-\",'Overline - Obliczenia'!R5)","v":1957},{"$f":"J21","v":"Hĺbka:"},{"$f":"IF(OR(Wys.wprowadzana>3000,Szer.wprowadzana>4050,Gleb.wprowadzana<300,Wys.cokolu<50),\"-\",'Overline - Obliczenia'!T5)","v":678},{"$f":"Opisy!A149","v":"Hĺbka Gw:"},{"$f":"IF(OR(Wys.wprowadzana>3000,Szer.wprowadzana>4050,Gleb.wprowadzana<300,Wys.cokolu<50),\"-\",'Overline - Obliczenia'!V5)","v":633}]
[null,null,null,null,null,{"$f":"Opisy!A102","v":"Hĺbka Gs:"},{"$f":"IF(OR(Wys.wprowadzana>3000,Szer.wprowadzana>4050,Gleb.wprowadzana<300,Wys.cokolu<50),\"-\",'Overline - Obliczenia'!P6)","v":700},{"$f":"Opisy!A118","v":"Hrúbka: "},{"$f":"IF(OR(Wys.wprowadzana>3000,Szer.wprowadzana>4050,Gleb.wprowadzana<300,Wys.cokolu<50),\"-\",'Overline - Obliczenia'!R6)","v":18},{"$f":"H43","v":"Hrúbka: "},{"$f":"IF(OR(Wys.wprowadzana>3000,Szer.wprowadzana>4050,Gleb.wprowadzana<300,Wys.cokolu<50),\"-\",'Overline - Obliczenia'!T6)","v":18},{"$f":"J43","v":"Hrúbka: "},{"$f":"IF(OR(Wys.wprowadzana>3000,Szer.wprowadzana>4050,Gleb.wprowadzana<300,Wys.cokolu<50),\"-\",'Overline - Obliczenia'!V6)","v":18}]
[null,null,null,null,null,{"$f":"Opisy!A103","v":"Vnútro korpusu:"},null,{"$f":"Opisy!A107","v":"Panel horný a spodný"},null,{"$f":"Opisy!A110","v":"Pravý bok:"},null,{"$f":"Opisy!A112","v":"Rozmery dverí:"}]
[null,null,null,null,null,{"$f":"Opisy!A104","v":"Výška Wu:"},{"$f":"IF(OR(Wys.wprowadzana>3000,Szer.wprowadzana>4050,Gleb.wprowadzana<300,Wys.cokolu<50),\"-\",'Overline - Obliczenia'!P8)","v":2094},{"$f":"J19","v":"Šírka: "},{"$f":"IF(OR(Wys.wprowadzana>3000,Szer.wprowadzana>4050,Gleb.wprowadzana<300,Wys.cokolu<50),\"-\",'Overline - Obliczenia'!R8)","v":1957},{"$f":"J41","v":"Výška:"},{"$f":"IF(OR(Wys.wprowadzana>3000,Szer.wprowadzana>4050,Gleb.wprowadzana<300,Wys.cokolu<50),\"-\",'Overline - Obliczenia'!T8)","v":2275},{"$f":"Opisy!A114","v":"Výška Wd:"},{"$f":"IF(OR(Wys.wprowadzana>3000,Szer.wprowadzana>4050,Gleb.wprowadzana<300,Wys.cokolu<50),\"-\",'Overline - Obliczenia'!V8)","v":2198}]
[null,null,null,null,null,{"$f":"Opisy!A105","v":"Šírka Sw:"},{"$f":"IF(OR(Wys.wprowadzana>3000,Szer.wprowadzana>4050,Gleb.wprowadzana<300,Wys.cokolu<50),\"-\",'Overline - Obliczenia'!P9)","v":1957},{"$f":"J21","v":"Hĺbka:"},{"$f":"IF(OR(Wys.wprowadzana>3000,Szer.wprowadzana>4050,Gleb.wprowadzana<300,Wys.cokolu<50),\"-\",'Overline - Obliczenia'!R9)","v":643},{"$f":"J42","v":"Hĺbka:"},{"$f":"IF(OR(Wys.wprowadzana>3000,Szer.wprowadzana>4050,Gleb.wprowadzana<300,Wys.cokolu<50),\"-\",'Overline - Obliczenia'!T9)","v":649},{"$f":"Opisy!A115","v":"Šírka Sd:"},{"$f":"IF(OR(Wys.wprowadzana>3000,Szer.wprowadzana>4050,Gleb.wprowadzana<300,Wys.cokolu<50),\"-\",'Overline - Obliczenia'!V9)","v":1006.5}]
[null,null,null,null,null,{"$f":"Opisy!A106","v":"Hĺbka Gu:"},{"$f":"IF(OR(Wys.wprowadzana>3000,Szer.wprowadzana>4050,Gleb.wprowadzana<300,Wys.cokolu<50),\"-\",'Overline - Obliczenia'!P10)","v":643},{"$f":"Opisy!A150","v":"Hrúbka dolného"},{"$f":"IF(OR(Wys.wprowadzana>3000,Szer.wprowadzana>4050,Gleb.wprowadzana<300,Wys.cokolu<50),\"-\",'Overline - Obliczenia'!R10)","v":18},{"$f":"J43","v":"Hrúbka: "},{"$f":"IF(OR(Wys.wprowadzana>3000,Szer.wprowadzana>4050,Gleb.wprowadzana<300,Wys.cokolu<50),\"-\",'Overline - Obliczenia'!T10)","v":18},{"$f":"Opisy!A116","v":"Hĺbka Gd:"},{"$f":"IF(OR(Wys.wprowadzana>3000,Szer.wprowadzana>4050,Gleb.wprowadzana<300,Wys.cokolu<50),\"-\",'Overline - Obliczenia'!V10)","v":18}]
[null,null,null,null,null,null,null,{"$f":"Opisy!A151","v":"Hrúbka horného"},{"$f":"IF(OR(Wys.wprowadzana>3000,Szer.wprowadzana>4050,Gleb.wprowadzana<300,Wys.cokolu<50),\"-\",'Overline - Obliczenia'!R11)","v":18}]
[null,null,{"$f":"C63","v":"* - Hmotnosť krídla je vypočítana tak, aby splnila z DTD  ( 620 kg / M3 ) alebo sklo ( 2800 kg / M3 ) bez škár"},null,null,null,null,null,null,null,{"$f":"Opisy!A145","v":"Váha krídla ( kg )"},null,{"$f":"IF(M47=\"-\",\"-\",(M45*M46*M47/1000000000)*620+0.5)","v":25.189122919999999}]
[]
[]
[null,null,null,null,null,null,null,{"$f":"IF(M63=\"-\",\" \",IF(M63>50,Opisy!$A$146,\" \"))","v":" "}]
[null,null,null,null,null,{"$f":"Opisy!A113","v":"Rozmery skrine - vložené dvere"}]
[null,null,null,null,null,{"$f":"F40","v":"Korpus:"},null,{"$f":"H40","v":"Rozmer sokla:"},null,{"$f":"J40","v":"Ľavý bok:"},null,{"$f":"L40","v":"Zvyslé delenie:"}]
[null,null,null,null,null,"Výška Ws:",{"$f":"IF(OR(Wys.wprowadzana>3000,Szer.wprowadzana>4050,Gleb.wprowadzana<300,Wys.cokolu<50),\"-\",'Overline - Obliczenia'!P15)","v":2275},"Výška:",{"$f":"IF(OR(Wys.wprowadzana>3000,Szer.wprowadzana>4050,Gleb.wprowadzana<300,Wys.cokolu<50),\"-\",'Overline - Obliczenia'!R15)","v":100},"Výška:",{"$f":"IF(OR(Wys.wprowadzana>3000,Szer.wprowadzana>4050,Gleb.wprowadzana<300,Wys.cokolu<50),\"-\",'Overline - Obliczenia'!T15)","v":2275},"Výška Wu:",{"$f":"IF(OR(Wys.wprowadzana>3000,Szer.wprowadzana>4050,Gleb.wprowadzana<300,Wys.cokolu<50),\"-\",'Overline - Obliczenia'!V15)","v":2094}]
[null,null,null,null,null,"Šírka Ss:",{"$f":"IF(OR(Wys.wprowadzana>3000,Szer.wprowadzana>4050,Gleb.wprowadzana<300,Wys.cokolu<50),\"-\",'Overline - Obliczenia'!P16)","v":1993},"Šírka: ",{"$f":"IF(OR(Wys.wprowadzana>3000,Szer.wprowadzana>4050,Gleb.wprowadzana<300,Wys.cokolu<50),\"-\",'Overline - Obliczenia'!R16)","v":1957},"Hĺbka:",{"$f":"IF(OR(Wys.wprowadzana>3000,Szer.wprowadzana>4050,Gleb.wprowadzana<300,Wys.cokolu<50),\"-\",'Overline - Obliczenia'!T16)","v":700},"Hĺbka Gw:",{"$f":"IF(OR(Wys.wprowadzana>3000,Szer.wprowadzana>4050,Gleb.wprowadzana<300,Wys.cokolu<50),\"-\",'Overline - Obliczenia'!V16)","v":628}]
[null,null,null,null,null,"Hĺbka Gs:",{"$f":"IF(OR(Wys.wprowadzana>3000,Szer.wprowadzana>4050,Gleb.wprowadzana<300,Wys.cokolu<50),\"-\",'Overline - Obliczenia'!P17)","v":700},"Hrúbka: ",{"$f":"IF(OR(Wys.wprowadzana>3000,Szer.wprowadzana>4050,Gleb.wprowadzana<300,Wys.cokolu<50),\"-\",'Overline - Obliczenia'!R17)","v":18},"Hrúbka: ",{"$f":"IF(OR(Wys.wprowadzana>3000,Szer.wprowadzana>4050,Gleb.wprowadzana<300,Wys.cokolu<50),\"-\",'Overline - Obliczenia'!T17)","v":18},"Hrúbka: ",{"$f":"IF(OR(Wys.wprowadzana>3000,Szer.wprowadzana>4050,Gleb.wprowadzana<300,Wys.cokolu<50),\"-\",'Overline - Obliczenia'!V17)","v":18}]
[null,null,null,null,null,"Vnútro korpusu:",null,"Panel horný a spodný",null,"Pravý bok:",null,"Rozmery dverí:"]
[null,null,null,null,null,"Výška Wu:",{"$f":"IF(OR(Wys.wprowadzana>3000,Szer.wprowadzana>4050,Gleb.wprowadzana<300,Wys.cokolu<50),\"-\",'Overline - Obliczenia'!P19)","v":2094},"Šírka: ",{"$f":"IF(OR(Wys.wprowadzana>3000,Szer.wprowadzana>4050,Gleb.wprowadzana<300,Wys.cokolu<50),\"-\",'Overline - Obliczenia'!R19)","v":1957},"Výška:",{"$f":"IF(OR(Wys.wprowadzana>3000,Szer.wprowadzana>4050,Gleb.wprowadzana<300,Wys.cokolu<50),\"-\",'Overline - Obliczenia'!T19)","v":2275},"Výška Wd:",{"$f":"IF(OR(Wys.wprowadzana>3000,Szer.wprowadzana>4050,Gleb.wprowadzana<300,Wys.cokolu<50),\"-\",'Overline - Obliczenia'!V19)","v":2198}]
[null,null,null,null,null,"Šírka Sw:",{"$f":"IF(OR(Wys.wprowadzana>3000,Szer.wprowadzana>4050,Gleb.wprowadzana<300,Wys.cokolu<50),\"-\",'Overline - Obliczenia'!P20)","v":1957},"Hĺbka:",{"$f":"IF(OR(Wys.wprowadzana>3000,Szer.wprowadzana>4050,Gleb.wprowadzana<300,Wys.cokolu<50),\"-\",'Overline - Obliczenia'!R20)","v":638},"Hĺbka:",{"$f":"IF(OR(Wys.wprowadzana>3000,Szer.wprowadzana>4050,Gleb.wprowadzana<300,Wys.cokolu<50),\"-\",'Overline - Obliczenia'!T20)","v":671},"Šírka Sd:",{"$f":"IF(OR(Wys.wprowadzana>3000,Szer.wprowadzana>4050,Gleb.wprowadzana<300,Wys.cokolu<50),\"-\",'Overline - Obliczenia'!V20)","v":988.5}]
[null,null,null,null,null,"Hĺbka Gu:",{"$f":"IF(OR(Wys.wprowadzana>3000,Szer.wprowadzana>4050,Gleb.wprowadzana<300,Wys.cokolu<50),\"-\",'Overline - Obliczenia'!P21)","v":638},"Hrúbka dolného",{"$f":"IF(OR(Wys.wprowadzana>3000,Szer.wprowadzana>4050,Gleb.wprowadzana<300,Wys.cokolu<50),\"-\",'Overline - Obliczenia'!R21)","v":18},"Hrúbka: ",{"$f":"IF(OR(Wys.wprowadzana>3000,Szer.wprowadzana>4050,Gleb.wprowadzana<300,Wys.cokolu<50),\"-\",'Overline - Obliczenia'!T21)","v":18},"Hĺbka Gd:",{"$f":"IF(OR(Wys.wprowadzana>3000,Szer.wprowadzana>4050,Gleb.wprowadzana<300,Wys.cokolu<50),\"-\",'Overline - Obliczenia'!V21)","v":18}]
[null,null,null,null,null,null,null,"Hrúbka horného",{"$f":"IF(OR(Wys.wprowadzana>3000,Szer.wprowadzana>4050,Gleb.wprowadzana<300,Wys.cokolu<50),\"-\",'Overline - Obliczenia'!R22)","v":18}]
[null,null,{"$f":"Opisy!A32","v":"* - Hmotnosť krídla je vypočítana tak, aby splnila z DTD  ( 620 kg / M3 ) alebo sklo ( 2800 kg / M3 ) bez škár"},null,null,null,null,null,null,null,{"$f":"K49","v":"Váha krídla ( kg )"},null,{"$f":"IF(M61=\"-\",\"-\",(M59*M60*M61/1000000000)*620+0.5)","v":24.74758868}]
[]
[]
[]
[null,null,null,null,null,null,null,null,null,null,null,null,"GTV Poland Sp. z o.o. Sp. k."]
[null,null,null,null,null,null,null,null,null,null,null,null,"ul. Przejazdowa 21, 05-800 Pruszków, Polska"]
[null,null,null,null,null,null,null,null,null,null,null,null,"www.gtv.com.pl"]
[null,null,null,null,null,null,null,null,null,null,null,null,"gtv.tech@gtv.com.pl"]

{"sheet":"Overline - Obliczenia","index":3,"n_rows":23,"n_cols":22,"rows_kept":23,"cut":false,"hidden":true,"merged":[[21,5,21,9],[15,5,16,6],[11,5,11,7],[12,5,12,7],[13,5,13,7],[7,5,7,6],[8,5,8,6],[9,5,9,6],[5,5,5,7],[1,14,1,21],[2,14,2,15],[6,16,6,17],[2,18,2,19],[2,20,2,21],[1,5,1,7],[4,5,4,7],[3,5,3,7],[2,5,2,7],[2,16,2,17],[17,14,17,15],[13,16,13,17],[17,18,17,19],[17,20,17,21],[6,14,6,15],[6,18,6,19],[6,20,6,21],[12,14,12,21],[13,14,13,15],[17,16,17,17],[13,18,13,19],[13,20,13,21]]}
[]
[null,"Wybrany system:",1,{"$f":"VLOOKUP(C2,A8:B38,2,FALSE)","v":"OVERILINE"},null,"Grubość płyty na korpus Gp",null,null,{"$f":"VLOOKUP(H17,F18:G20,2,FALSE)","v":18},null,null,null,null,null,"Wymiary szafy - drzwi nakładane"]
[null,"Typ zabudowy:",1,null,null,{"$f":"Opisy!A148","v":"Hrúbka horného panelu:"},null,null,{"$f":"VLOOKUP(J17,F18:G20,2,0)","v":18},null,null,null,null,null,"Korpus:",null,"Wymiary cokołu",null,"Bok lewy",null,"Przegrody pionowe"]
[null,"Układ drzwi",null,null,null,"Grubość płyty drzwi Gd",null,null,{"$f":"VLOOKUP(I17,F18:G20,2,FALSE)","v":18},null,null,null,null,null,"Wysokość Ws",{"$f":"Wys.szafy","v":2275},"Wysokość",{"$f":"Wys.cokolu","v":100},"Wysokość",{"$f":"Wys.szafy","v":2275},"Wysokość",{"$f":"Wys.uzyt.szafy","v":2094}]
[null,null,null,null,null,"Wysokość cokołu Hc ",null,null,{"$f":"OVERLINE!H34","v":100},null,null,null,null,null,"Szerokość Ss",{"$f":"Szer.szafy","v":1993},"Długość",{"$f":"P9","v":1957},"Głębokość",{"$f":"P10+35","v":678},"Głębokość",{"$f":"P10-10","v":633}]
[null,"Systemy podwieszane",null,null,null,"Szerokość zakładki Z",null,null,{"$f":"OVERLINE!H35","v":20},null,null,null,null,null,"Głębokość Gs",{"$f":"Gleb.szafy","v":700},"Grubość",{"$f":"Grub.plyty.korp","v":18},"Grubość",{"$f":"Grub.plyty.korp","v":18},"Grubość",{"$f":"Grub.plyty.korp","v":18}]
[null,null,null,null,null,null,null,null,null,null,null,null,null,null,"Wnętrze korpusu:",null,"Wieniec górny i dolny",null,"Bok prawy",null,"Wymiary drzwi"]
[null,null,null,null,null,"Wysokość szafy",null,{"$f":"IF(AND(OR(Wybrany_System_podw=1,Wybrany_System_podw=2),Typ_zabudowy=1),Wys.wprowadzana-25,Wys.wprowadzana)","v":2275},null,null,null,null,null,null,"Wysokość Wu",{"$f":"Wys.uzyt.szafy","v":2094},"Szerokość",{"$f":"P9","v":1957},"Wysokość",{"$f":"Wys.szafy","v":2275},"Wysokość Wd",{"$f":"IF(Wybrany_System_podw=1,Wys.szafy-Wys.cokolu-Grub.plyty.korp+41,IF(Wybrany_System_podw=2,Wys.szafy-Wys.cokolu-Grub.plyty.korp+39,\"-\"))","v":2198}]
[1,"OVERILINE",null,null,null,"Szerokość szafy",null,{"$f":"IF(AND(OR(Wybrany_System_podw=1,Wybrany_System_podw=2),Typ_zabudowy=1),Szer.wprowadzana-7,Szer.wprowadzana)","v":1993},null,null,null,null,null,null,"Szerokość Sw",{"$f":"Szer.uzyt.szafy","v":1957},"Głębokość",{"$f":"P10","v":643},"Głębokość",{"$f":"P10+6","v":649},"Szerokość Sd",{"$f":"(Szer.szafy+Szer.zakladki)/2","v":1006.5}]
[2,"OVERLINE PLUS",null,null,null,"Głębokość szafy",null,{"$f":"Gleb.wprowadzana","v":700},null,null,null,null,null,null,"Głębokość Gu",{"$f":"Gleb.uzyt.szafy+5","v":643},"Grubość Dolnego",{"$f":"Grub.plyty.korp","v":18},"Grubość",{"$f":"Grub.plyty.korp","v":18},"Grubość Gd",{"$f":"Grub.drzwi","v":18}]
[null,null,null,null,null,null,null,null,null,null,null,null,null,null,null,null,"Grubość górnego",{"$f":"Grub.wien.gorn","v":18}]
[null,null,null,null,null,"Wysokość użyteczna szafy",null,null,{"$f":"Wys.szafy-Wys.cokolu-(Grub.wien.gorn+Grub.plyty.korp)-45","v":2094}]
[null,null,null,null,null,"Szerokość użyteczna szafy",null,null,{"$f":"Szer.szafy-2*Grub.plyty.korp","v":1957},null,null,null,null,null,"Wymiary szafy - drzwi wpuszczane"]
[null,null,null,null,null,"Głębokość użyteczna szafy",null,null,{"$f":"Gleb.szafy-Grub.drzwi-44","v":638},null,null,null,null,null,"Korpus:",null,"Wymiary cokołu",null,"Bok lewy",null,"Przegrody pionowe"]
[null,null,null,null,null,null,null,null,null,null,null,null,null,null,"Wysokość Ws",{"$f":"Wys.szafy","v":2275},"Wysokość",{"$f":"Wys.cokolu","v":100},"Wysokość",{"$f":"Wys.szafy","v":2275},"Wysokość",{"$f":"Wys.uzyt.szafy","v":2094}]
[null,null,null,null,null,"Grubości płyt",null,"korpus","drzwi","Wieniec",null,null,null,null,"Szerokość Ss",{"$f":"Szer.szafy","v":1993},"Długość",{"$f":"Szer.uzyt.szafy","v":1957},"Głębokość",{"$f":"Gleb.uzyt.szafy+Grub.drzwi+44","v":700},"Głębokość",{"$f":"Gleb.uzyt.szafy-10","v":628}]
[null,null,null,null,null,null,null,2,2,2,null,null,null,null,"Głębokość Gs",{"$f":"Gleb.szafy","v":700},"Grubość",{"$f":"Grub.plyty.korp","v":18},"Grubość",{"$f":"Grub.plyty.korp","v":18},"Grubość",{"$f":"Grub.plyty.korp","v":18}]
[null,null,null,null,null,1,16,null,null,null,null,null,null,null,"Wnętrze korpusu:",null,"Wieniec górny i dolny",null,"Bok prawy",null,"Wymiary drzwi"]
[null,null,null,null,null,2,18,null,null,null,null,null,null,null,"Wysokość Wu",{"$f":"Wys.uzyt.szafy","v":2094},"Szerokość",{"$f":"P20","v":1957},"Wysokość",{"$f":"Wys.szafy","v":2275},"Wysokość Wd",{"$f":"V8","v":2198}]
[null,null,null,null,null,3,22,null,null,null,null,null,null,null,"Szerokość Sw",{"$f":"Szer.uzyt.szafy","v":1957},"Głębokość",{"$f":"P21","v":638},"Głębokość",{"$f":"Gleb.uzyt.szafy+Grub.drzwi+15","v":671},"Szerokość Sd",{"$f":"(Szer.szafy-2*Grub.plyty.korp+Szer.zakladki)/2","v":988.5}]
[null,null,null,null,null,null,null,null,null,null,null,null,null,null,"Głębokość Gu",{"$f":"Gleb.uzyt.szafy","v":638},"Grubość dolnego",{"$f":"Grub.plyty.korp","v":18},"Grubość",{"$f":"Grub.plyty.korp","v":18},"Grubość Gd",{"$f":"Grub.drzwi","v":18}]
[null,null,null,null,null,"Warunek grubości płyty na korpus i wienca górnego",null,null,null,null,null,null,null,null,null,null,"Grubość górnego",{"$f":"Grub.wien.gorn","v":18}]
[null,null,null,null,null,{"$f":"IF(Grub.plyty.korp>Grub.wien.gorn,Opisy!A153)","v":false}]

{"sheet":"QUANTUM","index":4,"n_rows":70,"n_cols":14,"rows_kept":70,"cut":false,"hidden":false,"merged":[[15,0,22,0],[23,0,29,0],[23,1,29,1],[15,2,22,3],[23,2,29,3],[49,1,49,4],[53,1,53,4],[57,1,57,4],[37,1,37,4],[44,1,44,4],[42,1,42,5],[35,1,35,5],[31,7,31,12],[32,7,32,12],[35,7,35,13],[34,7,34,13],[24,8,29,11],[15,1,22,1],[15,4,22,5],[23,4,29,5],[7,9,9,10],[7,11,9,12],[23,8,23,11],[16,8,16,11],[17,8,21,11],[58,6,58,7],[59,6,59,7],[57,6,57,7],[33,7,33,12],[39,7,40,13],[36,12,36,13],[50,6,53,6],[50,7,53,7],[49,6,49,8],[50,8,53,8],[36,7,36,11]]}
[]
[]
[]
[]
[]
[]
[]
[]
[]
[]
[]
["1.",{"$f":"Opisy!A15","v":"Vyber profil"}]
[]
["2.",{"$f":"Opisy!A119","v":"Možnosti montáže:"},null,null,null,null,null,"3.",{"$f":"Opisy!A128","v":"Výber montáže"}]
[]
["QUANTUM"]
[null,null,null,null,null,null,null,null,{"$f":"Opisy!A129","v":"Varianta A"}]
[]
[]
[]
[]
[]
[]
["QUANTUM R",null,null,null,null,null,null,null,{"$f":"Opisy!A130","v":"Varianta B"}]
[]
[]
[]
[]
[]
[]
[]
["4.",{"$f":"Opisy!A124","v":"Rozmery otvoru:"},null,null,{"$f":"Opisy!A125","v":"Výška WO:"},2200,{"$f":"E40","v":"mm"},{"$f":"IF(AND(Wybr.system.przejsciowy>3,QUANTUM!D46>2700),Opisy!A142,\" \")","v":" "}]
[null,null,null,null,{"$f":"Opisy!A126","v":"Šírka SO:"},1200,{"$f":"E39","v":"mm"},{"$f":"IF(AND(Wybr.system.przejsciowy>3,'Quantum - obliczenia'!$G$26,$D$60>6000,'Quantum - obliczenia'!$G$27<3),Opisy!A144,IF(AND('Quantum - obliczenia'!$G$26,$D$60>3000,'Quantum - obliczenia'!$G$27=3),Opisy!A143,IF(AND(Wybr.system.przejsciowy>3,D60>6000),Opisy!A144,\" \")))","v":" "}]
[null,null,null,null,{"$f":"Opisy!A137","v":"Šírka prekrytia X:"},46,{"$f":"G32","v":"mm"},{"$f":"Opisy!A127","v":"<----- Pre skryté vedenie Xmin = 46mm"}]
[null,null,null,null,null,null,null,{"$f":"IF(AND(Wybr.system.przejsciowy=2,MAX(H39:L39)>50),Opisy!A146,IF(AND(Wybr.system.przejsciowy>3,MAX(QUANTUM!M39:N39)>50),Opisy!A146,\" \"))","v":" "}]
[null,{"$f":"Opisy!A132","v":"Výpočty pre bezrámové riešenie ( Quantum )"},null,null,null,null,null,{"$f":"Opisy!A145","v":"Váha krídla ( kg )"}]
[null,null,null,null,null,null,null,"QUANTUM",null,null,null,null,"QUANTUM R"]
[null,{"$f":"Opisy!A138","v":"Rozmery krídla dverí:"},null,null,null,null,{"$f":"Opisy!A118","v":"Hrúbka: "},16,18,22,25,28,4,10]
[null,{"$f":"Opisy!A56","v":"Výška dverí"},"WD",{"$f":"IF('Quantum - obliczenia'!$D$1='Quantum - obliczenia'!$B$4,HLOOKUP(Opcja.montazu,'Quantum - obliczenia'!G2:I6,3,FALSE),\"-\")","v":"-"},{"$f":"E40","v":"mm"},null,{"$f":"Opisy!A152","v":"Váha:"},{"$f":"IF($D$39=\"-\",\"-\",$D$39*$D$40*H38*620/1000000000+0.34)","v":"-"},{"$f":"IF($D$39=\"-\",\"-\",$D$39*$D$40*I38*620/1000000000+0.34)","v":"-"},"-","-","-",{"$f":"IF(Wybr.system.przejsciowy>3,VLOOKUP('Quantum - obliczenia'!$H$43,'Quantum - obliczenia'!$E$42:$G$49,3,0),\"-\")","v":31.893688000000001},{"$f":"IF(Wybr.system.przejsciowy>3,VLOOKUP('Quantum - obliczenia'!$H$42,'Quantum - obliczenia'!$E$42:$G$49,3,0),\"-\")","v":19.184690199999999}]
[null,{"$f":"Opisy!A55","v":"Šírka dverí"},"SD",{"$f":"IF('Quantum - obliczenia'!D1='Quantum - obliczenia'!B4,HLOOKUP(Opcja.montazu,'Quantum - obliczenia'!G2:I5,2,FALSE),\"-\")","v":"-"},{"$f":"Opisy!A50","v":"mm"},null,null,{"$f":"Opisy!A32","v":"* - Hmotnosť krídla je vypočítana tak, aby splnila z DTD  ( 620 kg / M3 ) alebo sklo ( 2800 kg / M3 ) bez škár"}]
[null,{"$f":"Opisy!A131","v":"Dĺžka koľajnice"},"DT",{"$f":"IF('Quantum - obliczenia'!D1='Quantum - obliczenia'!B4,HLOOKUP(Opcja.montazu,'Quantum - obliczenia'!G2:I6,4,FALSE),\"-\")","v":"-"},{"$f":"E40","v":"mm"},{"$f":"IF(AND(Wybr.system.przejsciowy=2,D41>3000),Opisy!A147,\" \")","v":" "}]
[]
[null,{"$f":"Opisy!A133","v":"Výpočty pre rámové riešenie ( Quantum  R )"}]
[]
[null,{"$f":"Opisy!A138","v":"Rozmery krídla dverí:"},null,null,null,null,null,{"$f":"Opisy!A35","v":"\"H\" profily"}]
[null,{"$f":"B39","v":"Výška dverí"},"WD",{"$f":"IF(Wybr.system.przejsciowy>3,HLOOKUP(Opcja.montazu,'Quantum - obliczenia'!$G$2:$I$5,'Quantum - obliczenia'!L4,FALSE),\"-\")","v":2220},{"$f":"E47","v":"mm"}]
[null,{"$f":"B40","v":"Šírka dverí"},"SD",{"$f":"IF(Wybr.system.przejsciowy>3,HLOOKUP(Opcja.montazu,'Quantum - obliczenia'!$G$2:$I$5,'Quantum - obliczenia'!L3,FALSE),\"-\")","v":1246},{"$f":"Opisy!G50","v":"mm"}]
[null,{"$f":"B41","v":"Dĺžka koľajnice"},"DT",{"$f":"IF(Wybr.system.przejsciowy>3,HLOOKUP(Opcja.montazu,'Quantum - obliczenia'!$G$2:$I$5,'Quantum - obliczenia'!L5,FALSE),\"-\")","v":2446},{"$f":"E47","v":"mm"},{"$f":"IF(AND(Wybr.system.przejsciowy>3,D48>3000),Opisy!A147,\" \")","v":" "}]
[]
[null,{"$f":"Opisy!A134","v":"Rozmery výplne z DTD 10mm"},null,null,null,null,{"$f":"IF(AND(Wybr.system.przejsciowy>3,Oblicz.locznikow),\"↓10/4mm↓\",\" \")","v":" "}]
[null,{"$f":"Opisy!A60","v":"Výplň 10mm"},"SW10",{"$f":"IF(Wybr.system.przejsciowy>3,HLOOKUP(Opcja.montazu,'Quantum - obliczenia'!$F$2:$K$17,'Quantum - obliczenia'!L8,FALSE),\"-\")","v":1203},{"$f":"$E$39","v":"mm"}]
[null,{"$f":"Opisy!A65","v":"Výplň 10mm"},"WW10",{"$f":"IF(Wybr.system.przejsciowy>3,HLOOKUP(Opcja.montazu,'Quantum - obliczenia'!$F$2:$K$17,'Quantum - obliczenia'!L9,FALSE),\"-\")","v":2127},{"$f":"$E$39","v":"mm"}]
[]
[null,{"$f":"Opisy!A135","v":"Rozmery výplne zo skla  4mm"}]
[null,{"$f":"Opisy!A61","v":"Výplň 4mm"},"SW4",{"$f":"IF(Wybr.system.przejsciowy>3,HLOOKUP(Opcja.montazu,'Quantum - obliczenia'!$F$2:$K$17,'Quantum - obliczenia'!L12,FALSE),\"-\")","v":1200},{"$f":"$E$39","v":"mm"}]
[null,{"$f":"Opisy!A66","v":"Výplň 4mm"},"WW4",{"$f":"IF(Wybr.system.przejsciowy>3,HLOOKUP(Opcja.montazu,'Quantum - obliczenia'!$F$2:$K$17,'Quantum - obliczenia'!L13,FALSE),\"-\")","v":2126},{"$f":"$E$39","v":"mm"}]
[]
[null,{"$f":"Opisy!A136","v":"Rozmery hliníkových profilov"},null,null,null,null,{"$f":"Opisy!A40","v":"i ( počet profilov \"H\" )"},null,2]
[null,{"$f":"Opisy!A67","v":"Dĺžka madla"},"DR",{"$f":"IF(Wybr.system.przejsciowy>3,HLOOKUP(Opcja.montazu,'Quantum - obliczenia'!$F$2:$K$17,'Quantum - obliczenia'!L16,FALSE),\"-\")","v":2220},{"$f":"$E$39","v":"mm"},null,{"$f":"Opisy!A139","v":"Výška z DTD"},null,{"$f":"HLOOKUP(Opcja.montazu,'Quantum - obliczenia'!$F$2:$I$23,'Quantum - obliczenia'!L22,FALSE)","v":"-"}]
[null,{"$f":"Opisy!A68","v":"Dĺžka spojovacieho prof."},"DLP",{"$f":"IF(Wybr.system.przejsciowy>3,HLOOKUP(Opcja.montazu,'Quantum - obliczenia'!$F$2:$K$17,'Quantum - obliczenia'!L17,FALSE),\"-\")","v":1186},{"$f":"$E$39","v":"mm"},null,{"$f":"Opisy!A140","v":"Výška zo skla"},null,{"$f":"HLOOKUP(Opcja.montazu,'Quantum - obliczenia'!$F$2:$I$23,'Quantum - obliczenia'!L23,FALSE)","v":"-"}]
[]
[]
[]
[]
[]
[]
[null,null,null,null,null,null,null,null,null,null,null,null,"GTV Poland Sp. z o.o. Sp. k."]
[null,null,null,null,null,null,null,null,null,null,null,null,"ul. Przejazdowa 21, 05-800 Pruszków, Polska"]
[null,null,null,null,null,null,null,null,null,null,null,null,"www.gtv.com.pl"]
[null,null,null,null,null,null,null,null,null,null,null,null,"gtv.tech@gtv.com.pl"]

{"sheet":"Quantum - obliczenia","index":5,"n_rows":51,"n_cols":12,"rows_kept":51,"cut":false,"hidden":true,"merged":[[40,4,40,7],[0,6,0,8],[0,9,0,10],[6,5,6,8],[10,5,10,8],[14,5,14,8]]}
[null,"Wybrany system",4,{"$f":"VLOOKUP(C1,A3:B7,2,FALSE)","v":"QUANTUM R + ARCO"},null,null,"Opcje montażu",null,null,"Wariant zabudowy"]
[null,null,null,null,null,null,1,2,3,4,5,1]
[1,{"$f":"Opisy!A156","v":"BEZRÁMOVÉ"},"WO",{"$f":"QUANTUM!F32","v":2200},null,"SD",{"$f":"HLOOKUP($C$26,J2:K3,2,FALSE)","v":1246},{"$f":"HLOOKUP($C$26,J2:K3,2,FALSE)","v":1246},{"$f":"HLOOKUP($C$26,J2:K3,2,FALSE)","v":1246},{"$f":"Szer.Otw.przej+Szer.zakl.przej*2","v":1292},{"$f":"Szer.Otw.przej+Szer.zakl.przej","v":1246},2]
[2,"QUANTUM","SO",{"$f":"QUANTUM!F33","v":1200},null,"WD",{"$f":"IF(AND(Wybr.system.przejsciowy=2,Opcja.montazu=1),Wys.otw.przej-59,Wys.otw.przej-48)","v":2152},{"$f":"IF(AND(Wybr.system.przejsciowy=2,Opcja.montazu=2),Wys.otw.przej-61,Wys.otw.przej-50)","v":2150},{"$f":"Wys.otw.przej+20","v":2220},"-","-",3]
[3,{"$f":"Opisy!A157","v":"RÁMOVÉ"},"X",{"$f":"QUANTUM!F34","v":46},null,"DT",{"$f":"HLOOKUP($C$26,$J$2:$K$5,4,FALSE)","v":2446},{"$f":"HLOOKUP($C$26,$J$2:$K$5,4,FALSE)","v":2446},{"$f":"HLOOKUP($C$26,$J$2:$K$5,4,FALSE)","v":2446},{"$f":"Szer.Otw.przej+J3","v":2492},{"$f":"Szer.Otw.przej+K3","v":2446},4]
[4,"QUANTUM R + ARCO",null,null,null,null,null,null,null,null,null,5]
[5,"QUANTUM R + FALDA",null,null,null,{"$f":"Opisy!C134","v":"Wymiary wypełnienia z płyty 10mm"},null,null,null,null,null,6]
[null,null,null,null,null,"SW10",{"$f":"G3-43","v":1203},{"$f":"H3-43","v":1203},1203,null,null,7]
[null,"Opcje montażu",3,null,null,"WW10",{"$f":"G4-93","v":2059},{"$f":"H4-93","v":2057},2127,null,null,8]
[null,{"$f":"Opisy!A120","v":"Priama montáž na strop"},null,null,null,null,null,null,null,null,null,9]
[null,{"$f":"Opisy!A121","v":"Montáž na stenu - horné uchytenie"},null,null,null,{"$f":"Opisy!C135","v":"Wymiary wypełnienia ze szkła 4mm"},null,null,null,null,null,10]
[null,{"$f":"Opisy!A122","v":"Montáž do steny - bočné uchytenie"},null,null,null,"SW4",{"$f":"G3-46","v":1200},{"$f":"H3-46","v":1200},1200,null,null,11]
[null,null,null,null,null,"WW4",{"$f":"G4-94","v":2058},{"$f":"H4-94","v":2056},2126,null,null,12]
[null,"Grubość wypełnienia",5,null,null,null,null,null,null,null,null,13]
[1,{"$f":"B5","v":"RÁMOVÉ"},null,null,null,{"$f":"Opisy!C136","v":"Wymiary profili aluminiowych"},null,null,null,null,null,14]
[2,"10/4",null,null,null,"DR",{"$f":"G4","v":2152},{"$f":"H4","v":2150},2220,null,null,15]
[3,{"$f":"B3","v":"BEZRÁMOVÉ"},null,null,null,"DLP",{"$f":"G3-60","v":1186},{"$f":"H3-60","v":1186},1186,null,null,16]
[4,16,null,null,null,null,null,null,null,null,null,17]
[5,18,null,null,null,null,null,null,null,null,null,18]
[6,22,null,null,null,null,null,null,null,null,null,19]
[7,25,null,null,null,"Obliczenia z łącznikami",null,null,null,null,null,20]
[8,28,null,null,null,"płyta",{"$f":"VLOOKUP(Wybrany.lacznik.przej,E30:I32,3,FALSE)","v":"-"},{"$f":"VLOOKUP(Wybrany.lacznik.przej,E30:I32,4,FALSE)","v":"-"},{"$f":"VLOOKUP(Wybrany.lacznik.przej,E30:I32,5,FALSE)","v":"-"},null,null,21]
[null,null,null,null,null,"szkło",{"$f":"VLOOKUP(Wybrany.lacznik.przej,E33:I35,3,FALSE)","v":"-"},{"$f":"VLOOKUP(Wybrany.lacznik.przej,E33:I35,4,FALSE)","v":"-"},{"$f":"VLOOKUP(Wybrany.lacznik.przej,E33:I35,5,FALSE)","v":"-"},null,null,22]
[null,null,null,null,null,null,null,null,null,null,null,23]
[null,"Wariant zabudowy",2,null,null,null,null,null,null,null,null,24]
[1,{"$f":"Opisy!A129","v":"Varianta A"},{"$f":"IF(C25=1,4,5)","v":5},null,null,"Łączniki (TAK/NIE)",false,null,null,null,null,25]
[2,{"$f":"Opisy!A130","v":"Varianta B"},null,null,null,"Wybrany lacznik",1,null,null,null,null,26]
[null,null,null,null,null,"Warunek oblicznia łączników",{"$f":"IF(AND(Wybr.system.przejsciowy>3,Oblicz.locznikow),TRUE,FALSE)","v":false},null,null,null,null,27]
[null,null,null,null,null,"Liczba łączników",{"$f":"QUANTUM!I58","v":2},null,null,null,null,28]
[null,null,null,null,1,"A-HRS10-XXX-YY",{"$f":"IF(AND(Policz.laczniki,Wybrany.lacznik.przej=$E$30),(G$9-Liczba.lacznikow*7.5)/(Liczba.lacznikow+1),\"-\")","v":"-"},{"$f":"IF(AND(Policz.laczniki,Wybrany.lacznik.przej=$E$30),(H$9-Liczba.lacznikow*7.5)/(Liczba.lacznikow+1),\"-\")","v":"-"},{"$f":"IF(AND(Policz.laczniki,Wybrany.lacznik.przej=$E$30),(I$9-Liczba.lacznikow*7.5)/(Liczba.lacznikow+1),\"-\")","v":"-"},0.26800000000000002,null,29]
[null,null,null,null,2,"A-HR10-XXX-YY",{"$f":"IF(AND(Policz.laczniki,Wybrany.lacznik.przej=$E$31),(G$9-Liczba.lacznikow*1)/(Liczba.lacznikow+1),\"-\")","v":"-"},{"$f":"IF(AND(Policz.laczniki,Wybrany.lacznik.przej=$E$31),(H$9-Liczba.lacznikow*1)/(Liczba.lacznikow+1),\"-\")","v":"-"},{"$f":"IF(AND(Policz.laczniki,Wybrany.lacznik.przej=$E$31),(I$9-Liczba.lacznikow*1)/(Liczba.lacznikow+1),\"-\")","v":"-"},0.185,null,30]
[null,null,null,null,3,"A-HR10FL-XXX-YY",{"$f":"IF(AND(Policz.laczniki,Wybrany.lacznik.przej=$E$32),(G$9-Liczba.lacznikow*1)/(Liczba.lacznikow+1),\"-\")","v":"-"},{"$f":"IF(AND(Policz.laczniki,Wybrany.lacznik.przej=$E$32),(H$9-Liczba.lacznikow*1)/(Liczba.lacznikow+1),\"-\")","v":"-"},{"$f":"IF(AND(Policz.laczniki,Wybrany.lacznik.przej=$E$32),(I$9-Liczba.lacznikow*1)/(Liczba.lacznikow+1),\"-\")","v":"-"},0.13400000000000001,null,31]
[null,null,null,null,1,"A-HRS10-XXX-YY",{"$f":"IF(AND(Policz.laczniki,Wybrany.lacznik.przej=$E$30),(G13-Liczba.lacznikow*10.5)/(Liczba.lacznikow+1),\"-\")","v":"-"},{"$f":"IF(AND(Policz.laczniki,Wybrany.lacznik.przej=$E$30),(H13-Liczba.lacznikow*10.5)/(Liczba.lacznikow+1),\"-\")","v":"-"},{"$f":"IF(AND(Policz.laczniki,Wybrany.lacznik.przej=$E$30),(I13-Liczba.lacznikow*10.5)/(Liczba.lacznikow+1),\"-\")","v":"-"}]
[null,null,null,null,2,"A-HR10-XXX-YY",{"$f":"IF(AND(Policz.laczniki,Wybrany.lacznik.przej=$E$31),(G13-Liczba.lacznikow*4)/(Liczba.lacznikow+1),\"-\")","v":"-"},{"$f":"IF(AND(Policz.laczniki,Wybrany.lacznik.przej=$E$31),(H13-Liczba.lacznikow*4)/(Liczba.lacznikow+1),\"-\")","v":"-"},{"$f":"IF(AND(Policz.laczniki,Wybrany.lacznik.przej=$E$31),(I13-Liczba.lacznikow*4)/(Liczba.lacznikow+1),\"-\")","v":"-"}]
[null,null,null,null,3,"A-HR10FL-XXX-YY",{"$f":"IF(AND(Policz.laczniki,Wybrany.lacznik.przej=$E$32),(G13-Liczba.lacznikow*4)/(Liczba.lacznikow+1),\"-\")","v":"-"},{"$f":"IF(AND(Policz.laczniki,Wybrany.lacznik.przej=$E$32),(H13-Liczba.lacznikow*4)/(Liczba.lacznikow+1),\"-\")","v":"-"},{"$f":"IF(AND(Policz.laczniki,Wybrany.lacznik.przej=$E$32),(I13-Liczba.lacznikow*4)/(Liczba.lacznikow+1),\"-\")","v":"-"}]
[]
[]
[]
[]
[]
[null,"Obliczenia wagi QUANTUM R","ARCO","FALDA","Warunek wypełnienia tabeli z wagami do quantum r"]
[null,null,{"$f":"'Obliczenia-dolny'!U4","v":0.41799999999999998},{"$f":"'Obliczenia-dolny'!V4","v":0.46300000000000002},40,"ARCO PLYTA",{"$f":"Arco.plyta","v":19.184690199999999},{"$f":"Wybr.system.przejsciowy*10+Oblicz.locznikow","v":40}]
[null,"Płyta",{"$f":"QUANTUM!D51*QUANTUM!D52*QUANTUM!N38*620/1000000000","v":15.864442199999999},{"$f":"C43","v":15.864442199999999},80,"ARCO SZKLO",{"$f":"Arco.szklo","v":31.893688000000001},{"$f":"Wybr.system.przejsciowy*20+Oblicz.locznikow","v":80}]
[null,"Szkło",{"$f":"QUANTUM!D55*QUANTUM!D56*QUANTUM!M38*2800/1000000000","v":28.573440000000002},{"$f":"C44","v":28.573440000000002},41,"ARCO PLYTA LACZ",{"$f":"Arco.plyta.lacz","v":19.820386199999998}]
[null,"Aluminium",{"$f":"2*C42*QUANTUM!$D$59/1000+2*'Obliczenia-dolny'!$J$34*QUANTUM!$D$60/1000","v":2.9802479999999996},{"$f":"2*D42*QUANTUM!$D$59/1000+2*'Obliczenia-dolny'!$J$34*QUANTUM!$D$60/1000","v":3.1800480000000002},81,"ARCO SZKLO LACZ",{"$f":"Arco.szklo.lacz","v":32.529384}]
[null,"Okucia",0.34,{"$f":"0.34","v":0.34},50,"FALDA PLYTA",{"$f":"Falda.plyta","v":19.384490199999998}]
[null,"Razem płyta",{"$f":"SUM(C43,$C$45,$C$46)","v":19.184690199999999},{"$f":"SUM(D43,$D$45,$D$46)","v":19.384490199999998},100,"FALDA  SZKLO",{"$f":"Falda.szklo","v":32.093488000000001}]
[null,"Razem szkło",{"$f":"SUM(C44,$C$45,$C$46)","v":31.893688000000001},{"$f":"SUM(D44,$D$45,$D$46)","v":32.093488000000001},51,"FALDA  PLYTA LACZ",{"$f":"Falda.plyta.lacz","v":20.020186199999998}]
[null,"Łączniki",{"$f":"VLOOKUP(Wybrany.lacznik.przej,$E$30:$J$32,6,0)*Liczba.lacznikow*G17/1000","v":0.63569600000000004},{"$f":"C49","v":0.63569600000000004},101,"FALDA  SZKLO LACZ",{"$f":"Falda.szklo.lacz","v":32.729184000000004}]
[null,"Razem płyta",{"$f":"C47+$C$49","v":19.820386199999998},{"$f":"D47+$D$49","v":20.020186199999998}]
[null,"Razem szkło",{"$f":"C48+$C$49","v":32.529384},{"$f":"D48+$D$49","v":32.729184000000004}]

{"sheet":"Opisy","index":6,"n_rows":478,"n_cols":11,"rows_kept":478,"cut":false,"hidden":true,"merged":[]}
["Wybór języka",9,null,null,{"$f":"Opisy!A52","v":"chyba!"}]
[null,"Polski",null,null,{"$f":"Opisy!A53","v":"Chybný \"H\" profil!"}]
[null,"English"]
[null,"Русский"]
[null,"Deutsch"]
[null,"Français"]
[null,{"$f":"Tabela1[[#Headers],[Українська]]","v":"Українська"}]
[null,"Lietuvos"]
[null,"Slovenski"]
[null,"Slovenský"]
[]
[null,null,"PL","EN","RU","DE","FR","Українська","LT","SLO","SK"]
[null,null,1,2,3,4,5,6,7,8,9]
["Tekst do wstawienia","Nr wiersza","PL","EN","RU","DE","FR","Українська","LT","SLO","SK"]
[{"$f":"HLOOKUP($B$1,$C$13:$K$478,$B15,FALSE)","v":"Vyber profil"},3,"Wybierz system:","Choose a system:","Выберите тип системы:","System auswählen:","Choix système:","Виберіть систему:","Pasirinkite sistema:","Izberite sistem:","Vyber profil"]
["Linia ERGO",4,"Linia ERGO","ERGO product line","Система ERGO","Linie ERGO","Ligne ERGO","Лінія ERGO","ERGO produktų linija","Linija ERGO","Linia ERGO"]
["Linia NOVO",5,"Linia NOVO","NOVO product line","Система NOVO","Linie NOVO","Ligne NOVO","Лінія NOVO","NOVO  produktų linija","Linija NOVO","Linia NOVO"]
["Rozmery otvoru",6,"Wymiary otworu","Recess dimensions","Размеры проема","Größe der Öffnung","Dimensions façade","Розмір отвору","Skylės matmenis ","Dimenzija odprtine","Rozmery otvoru"]
["<- MAX 2,74m",7,"<- MAX 2,74m","<- MAX 2,74m","<- MAX 2,74 м","<- MAX 2,74 m","<- MAX 2,74m","<- MAX 2,74м","<- MAX 2,74m","<- MAX 2,74m","<- MAX 2,74m"]
["<- MIN 1,0m",8,"<- MIN 1,0m","<- MIN 1,0m","<- MIN 1,0 м","<- MIN 1,0 m","<- MIN 1,0m","<- MIN 1,0м","<- MIN 1,0m","<- MIN 1,0m","<- MIN 1,0m"]
["<- OK",9,"<- OK","<- OK","<- OK","<- OK","<- OK","<- OK","<- OK","<- OK","<- OK"]
["WO [mm]",10,"WO [mm]","Cabinet height [mm]","Высота [мм]","H [mm]","WO [mm]","ВО  [мм]","Skylės aukštis [mm]","Višina omarice [mm]","WO [mm]"]
["SO [mm]",11,"SO [mm]","Cabinet width [mm]","Ширина [мм]","B [mm]","SO [mm]","ШО  [мм]","Skylės plotis [mm]","Širina omarice [mm]","SO [mm]"]
["<- MAX 6,0m",12,"<- MAX 6,0m","<- MAX 6,0m","<- MAX 6,0 м","<- MAX 6,0 m","<- MAX 6,0m","<- MAX 6,0м","<- MAX 6,0m","<- MAX 6,0m","<- MAX 6,0m"]
["Konfigurácia krídiel",13,"Konfiguracja skrzydeł","Door arrangement","Конфигурация дверей","Konfiguration der Flügel","Configuration vantaux","Конфігурація дверей","Durų konfigūracija","Konfiguracija Vrat","Konfigurácia krídiel"]
["n (I. krídiel )",14,"n (l. skrzydeł)","n (no. of doors)","кол-во дверей","n (Anzahl von Flügeln)","n (nombre de vantaux)","n (к-сть. дверей)","n (durų skaičius )","n (št. vrat)","n (I. krídiel )"]
["k (I. prekrytie )",15,"k (l. zakładek)","k (no. of overlaps)","кол-во перехлестов","k (Anzahl von Überlappungen)","k (nombre de recouvrements)","k (к-сть. накладка)","k (persidengimų skaičius)","k (št. prekrivanj)","k (I. prekrytie )"]
["z (šírka prekrytia)",16,"z (szer. zakładki)","z (width of overlap)","ширина перехлеста","z (Breite der Überlappung)","z (largeur des recouvrements)","z (ширина накладки)","z (persidengimo plotis)","z (širina prekrivanja)","z (šírka prekrytia)"]
["Štetina",17,"Szczotka","brush seal","Щетка","Bürste","Brosse","Щітка","šepetėlis","Ščetka","Štetina"]
["Pozor:",18,"Uwaga:","Attention:","Внимание! ","Achtung:","Remarque:","Увага:","Dėmesio : ","Opozorilo","Pozor:"]
["Rozmery krídiel pre montáž mechanizmu soft closing:",19,"Proporcje skrzydeł dla montażu mechanizmu samodociągu:","Proportions of the doors, for mounting the soft closing mechanism:","Пропорции дверей для монтажа механизма самодоката","Proportionen der Flügel für Montage des Selbsteinzugs:","Proportion vantail pour montage mécanisme soft-closing","Пропозиція крил для монтажу механізму самодотягу","Durų proporcijos  mechanizmo montavimui :","Dimenzijje vratnega krila","Rozmery krídiel pre montáž mechanizmu soft closing:"]
["* - Hmotnosť krídla je vypočítana tak, aby splnila z DTD  ( 620 kg / M3 ) alebo sklo ( 2800 kg / M3 ) bez škár",20,"* - Waga skrzydła została wyliczona dla wypełnienia wykonanego z płyty wiórowej (620kg/m3) lub szkła zwykłego o grubości 4mm (2800kg/m3), bez łączeń.","* - Weight was calculated for door made ​​of chipboard (620kg / m 3) or ordinary glass with a thickness of 4mm (2800kg / m 3), without connections.","* - Вес двери просчитан для наполнения из плиты ДСП (620 кг/м3) или стекла (2800 кг/м3) без соеденительных профилей.","* - Gewicht des Flügels wurde für Türen aus Pressspan (620 kg/m3) oder Glas mit einer Stärke von 4 mm (2800 kg/m3) ohne Verbindungen errechnet.","* - Poids du vantail calculé pour remplissage avec panneaux agglomérés (620kg/m3) ou verre d'épaisseur 4mm (2800kg/m3), sans joints.","* - Вага крила була розрахована для наповнення виконаного з ДСП  (620кг/м3) або звичайного скла товщиною 4мм (2800кг/м3), без з'єднань.","* -* -  Svoris buvo apskaičiuotas  durims pagamintoms  iš medžio drožlių plokštės (620kg / m 3) arba paprasto stiklo  4mm storio (2800kg / m 3), be siūlių.","* - Teža je  izračunana za vrata narejena iz ivernih plošč ( 620kg / m3 ) ali navadnim steklom debeline 4mm ( 2800kg / m 3 ) , brez spojev.","* - Hmotnosť krídla je vypočítana tak, aby splnila z DTD  ( 620 kg / M3 ) alebo sklo ( 2800 kg / M3 ) bez škár"]
["Pozor! Nesprávny pomer šírky a výšky dverí.  Odporúča sa znížiť počet krídiel.",21,"Uwaga! Nie właściwa proporcja wysokości drzwi do szerokości. Zaleca się zmniejszyć liczbę skrzydeł.","Attention! Wrong proportions between the door height and width. It is recommended to reduce the number of doors.","Внимание! Неправильная пропорция высоты двери к ширине. Рекомендуется уменьшить количество дверей.","Achtung! Das Höhe-Breite-Verhältnis der Türen stimmt nicht. Bitte ändern Sie die Anzahl der Flügel.","Attention! Inadaptation de la proportion entre la haut. et la larg. du vantail. Il est recommandé de réduire le nombre de vantaux.","Увага! Неправильна пропорція висоти до ширини дверей. Рекомендується зменшити кількість крил. ","Dėmesio! Klaidingos  durų proporcijos tarp aukščio ir pločio. Rekomenduojama sumažinti durų sk.","Pozor ! Napačna razmerja med višino vrat in širino . Je priporočljivo , da se zmanjša število vrat","Pozor! Nesprávny pomer šírky a výšky dverí.  Odporúča sa znížiť počet krídiel."]
["Pomery sú v poriadku.",22,"Proporcje są OK","Proportions are OK","Пропорции ОК","Die Proportionen sind OK. ","Les proportions sont correctes","Правильна пропорція","Proporcijos yra tinkamos","Dimenzije so OK","Pomery sú v poriadku."]
["\"H\" profily",23,"Łączniki","Connections","Соединители","Verbindung","Joints","З'єднання","Jungtys ","Spoji","\"H\" profily"]
["Výpočet kombinovaných výplní.",24,"Obliczenia wysokości wypełnień łączonych","Calculation of heght with combined infills","Расчет высоты соединяемых наполнений","Berechnung der Höhe der verbundenen Füllungen","Calcul de la hauteur de remplissage des joints","Розрахунок висоти використаних наповнень"," Užpildo jungties aukščio apskaičiavimas","Izračun višine s kombiniranimi polnil","Výpočet kombinovaných výplní."]
["Vyber \"H\" profil",25,"Wybierz łącznik:","Choose a connection:","Выбери соединитель:","Verbindung auswählen:","Choix des joints","Виберіть з'єднання.","Pasirinkite jungti:","Izberite spoj","Vyber \"H\" profil"]
["Rovnomerné rozloženie \"H\" profilov",26,"Równomierne rozłożenie łączników.","Joints split door infills to equal panels","Равномерное распределение соединителей.","Gleichmäßige Verteilung der Verbinder","Disposition uniforme des joints","Рівномірне розподілення з'єднань.","Tolygus jungčių pasiskirstymas","Enakomerno razdeli spoje","Rovnomerné rozloženie \"H\" profilov"]
["Jedna hrúbka výplne",27," Jedna grubość wypełnienia","The same thickness of infills","Одна ширина наполнения","Gleiche Stärke der Füllung","L'épaisseur du remplissage","Одна товщина наповнення","Tas pats užpildo storis","Enaka debelina polnil","Jedna hrúbka výplne"]
["i ( počet profilov \"H\" )",28,"i (ilość łączników)","i (number of connections)","кол-во соединителей","und (Anzahl der Verbindungen)","i (nombre de joints)","і (кількість з'єднань)","i ( Jungčių kiekis)","i ( število spojev)","i ( počet profilov \"H\" )"]
["Počet dielov",29,"Liczba elementów składowych","The number of elements","Кол-во деталей","Anzahl der Elemente","Nombre d'éléments","Кількість деталей","Elementų skaičius","Število elementov","Počet dielov"]
["Diely z DTD",30,"Elementy z płyty","Chipboard parts","Элементы из плиты","Elemente aus Pressspan","Eléments en aggloméré","Елементи з плити","Elementai pagaminti iš plokštės","Deli iverala","Diely z DTD"]
["Výška DTD bez profilov \"H\"",31,"Wys. wyp. z płyty bez łączników","Board height without joiners","Выс. нап. из плиты без соед.","Höhe der Spanplatten ohne Verbindung","H remp. en aggloméré sans joints","Вис. нап. з плити без з'єднань","Plokštės elementų aukštis be jungčių","Višina polnila brez spoja","Výška DTD bez profilov \"H\""]
["A (výška dielov z DTD)",32,"A (wys. elementów z płyty)","A (single board panel height)","А (выс. элементов из плиты)","A (Höhe der Spanplatten)","A (haut. éléments en aggloméré)","A (висота елементів з плити)","A (plokštės elementų aukštis)","A ( višina polnila)","A (výška dielov z DTD)"]
["B (výška dielov z DTD)",33,"B (wys. elementów z płyty)","B (single board panel height)","B (выс. элементов из плиты)","B (Höhe der Spanplatten)","B (haut. éléments en aggloméré)","B (висота елементів з плити)","B (plokštės elementų aukštis)","B ( višina polnila)","B (výška dielov z DTD)"]
["Diely zo skla 4mm",34,"Elementy ze szkła 4mm","Glass elements 4mm","Элементы из стекла 4 мм","Glaselemente 4mm","Eléments en verre 4mm","Елементи з скла 4мм","Stiklo elementai  4mm","Stekleni element 4 mm","Diely zo skla 4mm"]
["Výška skla bez profilov \"H\"",35,"Wys. wyp. 4mm bez łączników","Infill height 4mm without connections","Выс. нап. 4 мм без соед.","Höhe der Füllung ohne Verbindung 4mm","Haut rempl. 4 mm sans joints","Вис. наповнення 4мм без з'єднань","Užpildo aukštis 4mm be jungcių","Višina polnila 4mm brez spoja","Výška skla bez profilov \"H\""]
["C (Výška skla 4mm )",36,"C (wys. elementów ze szkła 4mm)","C (single glass 4mm panel height)","C (выс. элементов из стекла 4 мм)","C (Höhe der Glaselemente 4mm)","C (hauteur éléments en verre 4mm)","C (висота елементів із скла 4мм)","C (stiklo elementų aukštis 4mm)","C (Višina steklenega elementa 4mm)","C (Výška skla 4mm )"]
["ks",37,"szt.","pcs.","шт.","Stk.","ex.","шт.","vnt.","Kos","ks"]
["mm",38,"mm","mm","мм","mm","mm","мм","mm","mm","mm"]
["mm*",39,"mm*","mm*","мм*","mm*","mm*","мм*","mm*","mm*","mm*"]
["chyba!",40,"Błąd!","Error!","Ошибка!","Fehler!","Erreur!","Помилка!","Klaida!","Napaka!","chyba!"]
["Chybný \"H\" profil!",41,"Niewłaściwy łącznik!","Incorrect connector!","Неверный соединитель!","Falsche Verbindung!","Joint incorrect !","Не правильне з'єднання!","Netinkamas jungtis!","Nepravilni spoj","Chybný \"H\" profil!"]
["* - Uwaga! W systemie 18/4, przy łączeniu wypełnień o różnych grubościach (płyta, szkło), został założony luz dla szkła wynoszący 0,5mm na każdy element. W konfiguracji, gdzie występuje tylko jedno wypełnienie szklane, należy od jego wysokości odjąć 1mm, aby zwiększyć luz. ",42,"* - Uwaga! W systemie 18/4, przy łączeniu wypełnień o różnych grubościach (płyta, szkło), został założony luz dla szkła wynoszący 0,5mm na każdy element. W konfiguracji, gdzie występuje tylko jedno wypełnienie szklane, należy od jego wysokości odjąć 1mm, aby zwiększyć luz. ","Attention! In system 18/4, when combining different filling thickness (board, glass), there is an assumed gap for glass 0,5mm on every element. If there is only 1 glass infill, You should deduct 1mm, to make the gap bigger.  ","Внимание! Система  18/4 запроектирована таким образом, что, при соединении наполнений разной толщины (плита, стекло), остается люфт для стекла в 0,5 мм на каждом элементе. В конфигурации, где имеется только стеклянное наполнение, необходимо отнять от его высоты 1 мм, чтобы увеличить люфт.","* - Achtung! Im System 18/4 bei Verbindung von Füllungen unterschiedlicher Stärken (Spanplatte, Glas) wurde eine Lücke für Glas von 0,5 mm für jedes Element angenommen. Bei der Konfiguration, in der nur eine Glasfüllung vorliegt, muss von ihrer Höhe 1 mm abgezogen werden, um die Lücke zu vergrößern.","* - Attention! Pour le systeme 18/4 en additionant des remplissages de différentes épaisseurs  (aggloméré, verre) une marge a été créé pour le montant en verre de 0,5 mm sur chaque élément.  Dans une configuration où il n'y a qu'un seul remplissage de verre, soustraite 1 mm de sa hauteur pour  augmenter l'espace ","* - Увага! В системі 18/4, при з'єднанні наповнень різної товщини (плита, скло), врахований зазор для скла в розмірі 0,5мм на кожен елемент. В конфігурації, де є тільки скляне наповнення, потрібно від його висоти відняти 1 мм, щоб збільшити зазор.","* - Dėmesio! Sistemoje 18/4, derinant skirtingus užpildų storius (plokštė, stiklas), yra   kiekvienam stiklų elementui padarytas  0,5 mm laisvumas . Jei yra tik 1 stiklinis užpildas, nuo jo aukščio reikia atskaičiuoti 1mm, kad padidinti laisvumą.","* - Pozor ! V sistemu 18/4 , ko združuje različne debeline polnil ( iveral , steklo) , obstaja možnost, reža za steklo 0,5 mm za vsak element. Če obstaja samo 1 stekleno polnilo , boste morali odšteti 1mm , da je razlika večja .","* - Uwaga! W systemie 18/4, przy łączeniu wypełnień o różnych grubościach (płyta, szkło), został założony luz dla szkła wynoszący 0,5mm na każdy element. W konfiguracji, gdzie występuje tylko jedno wypełnienie szklane, należy od jego wysokości odjąć 1mm, aby zwiększyć luz. "]
["Šírka dverí",43,"Szerokość drzwi","Door width","Ширина дверей","Breite der Tür","Largeur vantail","Ширина дверей","Durų plotis","Širina vrat","Šírka dverí"]
["Výška dverí",44,"Wysokość drzwi","Door height","Высота дверей","Höhe der Tür","Hauteur vantail","Висота дверей","Durų aukštis","Višina vrat","Výška dverí"]
["Výplň 18mm",45,"Szer. wyp. 18mm","Board 18mm width","Шир. наполнения 18 мм","Breite der Füllung 18 mm","Largeur remplissage 18mm","Ширина наповнення - 18мм","lent. pl. 18mm","Širina polnila 18 mm","Výplň 18mm"]
["Výplň 16mm",46,"Szer. wyp. 16mm","Board 16mm width","Шир. наполнения 16 мм","Breite der Füllung 16 mm","Largeur remplissage 16mm","Ширина наповнення - 16мм","lent. pl 16mm","Širina polnila 16 mm","Výplň 16mm"]
["Výplň 12mm",47,"Szer. wyp. 12mm","Board 12mm width","Шир. наполнения 12 мм","Breite der Füllung 12 mm","Largeur remplissage 12mm","Ширина наповнення - 12мм","lent. pl  12mm","Širina polnila 12 mm","Výplň 12mm"]
["Výplň 10mm",48,"Szer. wyp. 10mm","Board 10mm width","Шир. наполнения 10 мм","Breite der Füllung 10 mm","Largeur remplissage 10mm","Ширина наповнення - 10мм","lent. pl  10mm","Širina polnila 10 mm","Výplň 10mm"]
["Výplň 4mm",49,"Szer. wyp. 4mm","Glass 4mm width","Шир. наполнения 4 мм","Breite der Füllung 4 mm","Largeur remplissage 4mm","Ширина наповнення - 4мм","lent. pl  4mm","Širina polnila 4 mm","Výplň 4mm"]
["Výplň 18mm",50,"Wys. wyp. 18mm","Board 18mm height","Выс. наполнения 18 мм","Höhe der Füllung 18 mm","Hauteur remplissage 18mm","Висота наповнення - 18мм","lent. pl  18mm","Višina polnila 18 mm","Výplň 18mm"]
["Výplň 16mm",51,"Wys. wyp. 16mm","Board 16mm height","Выс. наполнения 16 мм","Höhe der Füllung 16 mm","Hauteur remplissage 16mm","Висота наповнення - 16мм","lent. pl  16mm","Višina polnila 16 mm","Výplň 16mm"]
["Výplň 12mm",52,"Wys. wyp. 12mm","Board 12mm height","Выс. наполнения 12 мм","Höhe der Füllung 12 mm","Hauteur remplissage 12mm","Висота наповнення - 12мм","lent. pl  12mm","Višina polnila 12 mm","Výplň 12mm"]
["Výplň 10mm",53,"Wys. wyp. 10mm","Board 10mm height","Выс. наполнения 10 мм","Höhe der Füllung 10 mm","Hauteur remplissage 10mm","Висота наповнення - 10мм","lent. pl  10mm","Višina polnila 10 mm","Výplň 10mm"]
["Výplň 4mm",54,"Wys. wyp. 4mm","Glass 4mm height","Выс. наполнения 4 мм","Höhe der Füllung 4 mm","Hauteur remplissage 4mm","Висота наповнення - 4мм","lent. pl  4mm","Višina polnila 4 mm","Výplň 4mm"]
["Dĺžka madla",55,"Długość rączki","Handle length","Длина ручки","Länge des Griffs","Longueur poignee","Довжина ручки","Rankenos ilgis","Dolžina ročaja","Dĺžka madla"]
["Dĺžka spojovacieho prof.",56,"Dł. listew poz.","Rail length","Длина поперечных профилей","Länge der Leiste","Longueur du rail","Довжина горизон. проф.","Likusių plokščių ilgis","Dolžina letve","Dĺžka spojovacieho prof."]
["Váha krídla s výplňou DTD",57,"Waga skrzydła z wypełnieniem z płyty","Door weight with chipboard infill","Вес двери с наполнением из плиты ДСП","Gewicht des Flügels mit Pressspanfüllung","Poids de la porte avec remplissage panneau","Вага дверей з наповненням із плити","Durų svoris su užpildu iš plokštės","Teža vratnega krila s polnilom","Váha krídla s výplňou DTD"]
["Váha krídla s výplňou sklo",58,"Waga skrzydła z wypełnieniem ze szkła","Door weight with glass infill","Вес двери с наполнением из стекла","Gewicht des Flügels mit Glasfüllung","Poids de la porte avec remplissage verre","Вага дверей з наповненням із скла","Durų svoris su užpildu iš stiklo ","Teža vratnega krila s steklenim polnilom","Váha krídla s výplňou sklo"]
["kg",59,"kg","kg","кг","kg","kg","кг","kg","kg","kg"]
["Zvýšiť počet prekrytí",60,"Zwiększ ilość zakładek","Increase the number of ocerlaps","Необходимо увеличить кол-во перехлестов","Die Anzahl von Überlappungen soll größer sein","Augmenter nbre recouvrements","Збільшити кількість накладок","Padidinti persidengimų skaičių","Povečanje števila prekrivanja","Zvýšiť počet prekrytí"]
["Znížiť počet prekrytí",61,"Zmniejsz ilość zakładek","Reduce the number of overlaps","Необходимо уменьшить кол-во перехлестов","Die Anzahl von Überlappungen soll kleiner sein","Modifier nbre recouvrements","Зменшити кількість накладок","Sumažinti persidengimų skaičių","Zmanjšanje števila prekrivanj","Znížiť počet prekrytí"]
["N/D",62,"N/D","N/A","Н/Д","n. z.","N/D","Н/Д","N/D","N/D","N/D"]
["------RÁMOWE 18mm--------------",63,"------RAMOWE 18mm--------------","-------FRAME 18mm--------------","-----------Pама 18мм--------------","----Alu-Rahmen 18 mm-----------","--------Cadre 18mm--------------","---------Pама 18мм--------------","------RĖMAS 18mm--------------","----Alu-okvir 18 mm-----------","------RÁMOWE 18mm--------------"]
["------RÁMOWE 10mm--------------",64,"------RAMOWE 10mm--------------","-------FRAME 10mm--------------","-----------Pама 10мм--------------","----Alu-Rahmen 10 mm-----------","--------Cadre 10mm--------------","---------Pама 10мм--------------","------RĖMAS 10mm--------------","----Alu-Okvir 10 mm-----------","------RÁMOWE 10mm--------------"]
["Sprawdź ilość zakładek! W większości przypadków, różnica pomiędzy ilością skrzydeł a ilością zakładek wynosi 1. Wyjątkiem może być zabudowa z czteroma skrzydłami w układzie symetrycznym, gdzie ta różnica wnosi 2 (patrz katalog).",65,"Sprawdź ilość zakładek! W większości przypadków, różnica pomiędzy ilością skrzydeł a ilością zakładek wynosi 1. Wyjątkiem może być zabudowa z czteroma skrzydłami w układzie symetrycznym, gdzie ta różnica wnosi 2 (patrz katalog).","Check the number of overlaps! In the most cases, the difference between the amount of wings and overlaps is one. The exception can be  a development with four wings in the symmetric system  , where the difference is 2 ( check the catalogue).","Проверь количество перехлёстов! В большинстве случаев разница между количеством дверей и количеством перехлёстов равно 1. Исключением является конфигурация с четырьмя дверями в ассиметричном варианте исполнения, где разница равна 2 (смотрите каталог!)","Prüfen Sie die Anzahl der Überlappungen! In den meisten Fällen beträgt die Differenz zwischen der Anzahl der Flügel und der Anzahl der Überlappungen 1. Eine Ausnahme kann das vierflügelige Schiebetürsystem mit vier Flügeln in symmetrischer Verteilung bilden, wo diese Differenz 2 beträgt (siehe Katalog).","Vérifier le nombre de recouvrements ! Dans la plupart des cas, la différence entre le nombre de recouvrements et de vantaux est de 1. Une exception peut – être le montage de 4 vantaux symétriques, lorsque cette différence est de 2 (voir catalogue).","У більшості випадків, різниця між кількістю крил і кількість вкладок дорівнює 1. Винятком може бути будова з чотирма крилами в симетричному розташуванні, де різниця дорівнює 2 (див. каталог).","Patikrinkite persidengimų skaičių!  Daugeliu atvejų, skirtumas tarp durų sk. ir persidengimų yra 1. Išimčiu gali būti simetriškoje sistemoje  imontuojant 4 duris. Skirtumas yra 2 (žiurėkite katalogą)\n","Preverite število prekrivanja ! V večini primerov je razlika med številom polnil  in števila prekrivanj je 1. Izjema lahko tvorita s štirimi krili v simetričnem izgledu , Štiri plošče Sistem drsnih vrat , kjer je ta razlika 2 ( glej katalog ) .","Sprawdź ilość zakładek! W większości przypadków, różnica pomiędzy ilością skrzydeł a ilością zakładek wynosi 1. Wyjątkiem może być zabudowa z czteroma skrzydłami w układzie symetrycznym, gdzie ta różnica wnosi 2 (patrz katalog)."]
["Váha krídla s výplňou DTD 18mm",66,"Waga skrzydła z wypełnieniem z płyty 18mm","Door weight with chipboard infill - 18mm","Вес двери с наполнением из плиты ДСП - 18мм","Gewicht des Flügels mit Pressspanfüllung - 18mm","Poids de la porte avec remplissage panneau - 18mm","Вага дверей з наповненням із плити - 18мм","Durų svoris su užpildu iš plokštės - 18mm","Teža vratnega krila s polnilom Iveral 18 mm","Váha krídla s výplňou DTD 18mm"]
[{"$f":"HLOOKUP($B$1,$C$13:$K$478,$B79,FALSE)","v":"Váha krídla s výplňou sklo 16mm"},67,"Waga skrzydła z wypełnieniem z płyty 16mm","Door weight with chipboard infill - 16mm","Вес двери с наполнением из плиты ДСП - 16мм","Gewicht des Flügels mit Pressspanfüllung - 16mm","Poids de la porte avec remplissage panneau - 16mm","Вага дверей з наповненням із плити - 16мм","Durų svoris su užpildu iš plokštės - 16mm","Teža vratnega krila s polnilom Iveral 16 mm","Váha krídla s výplňou sklo 16mm"]
["<- MAX 3,0m",68,"<- MAX 3,0m","<- MAX 3,0m","<- MAX 3,0 м","<- MAX 3,0 m","<- MAX 3,0m","<- MAX 3,0м","<- MAX 3,0m","<- MAX 3,0m","<- MAX 3,0m"]
["Rozmery podľa:",69,"Wymiary dla:","Dimensions for:","Размер для:","Abmessungen für:",null,"Виміри для:",null,"Dimenzije za:","Rozmery podľa:"]
["dutiny",70,"Wnęki","niches","Ниши ","Nische",null,"Ніші",null,"Odprtino","dutiny"]
["Korpusu skrine",71,"Korpusu szafy","closet body","Корпуса шкафа","Schrankkorpus",null,"Корпусу шафи",null,"Korpus ormare","Korpusu skrine"]
["Výška:",72,"Wysokość:","Height:","Высота:","Höhe:",null,"Висота:",null,"Višina:","Výška:"]
["Šírka: ",73,"Szerokość:","Width:","Ширина:","Breite:",null,"Ширина:",null,"Širina:","Šírka: "]
["Hĺbka:",74,"Głębokość:","Depth:","Глубина:","Tiefe:",null,"Глибина: ",null,"Globina:","Hĺbka:"]
["Maximálne 3000mm",75,"Maksimum 3000mm","Maximum 3000mm","Максимум 3000мм","Maximum 3.000 mm",null,"Максимум 3000 мм",null,"Maksimum 3000mm","Maximálne 3000mm"]
["Maximálne 4050mm",76,"Maksimum 4050mm","Maximum 4050mm","Максимум 4050 мм","Maximum 4.050 mm",null,"Максимум 4050 мм",null,"Maksimum 4050mm","Maximálne 4050mm"]
["Hrúbka DTD na korpus Gp :",77,"Grubość płyty na korpus Gp:","Board thickness for body Gp:","Толщина плиты для корпуса ТК:","Korpusplattenstärke Gp:",null,"Товщина плити для корпусу Gp:",null,"Deblina plošče za korpus Gp:","Hrúbka DTD na korpus Gp :"]
["Výška sokla Hc :",78,"Wysokość cokołu Hc :","Cabinet plinth Hc:","Высота цоколя ВЦ:","Sockelhöhe Hc:",null,"Висота цоколя Hc:",null,"višina podnožja Hc :","Výška sokla Hc :"]
["Hrúbka DTD dverí Gd:",79,"Grubość płyty drzwi Gd:","Board thickness doors Gd:","Толщина плиты на двери ТК:","Türplattenstärke Gd:",null,"Товщина плити для дверей Gd:",null,"Debelina plošče za vrata Gd:","Hrúbka DTD dverí Gd:"]
["Šírka prekritia Z:",80,"Szerokość zakładki Z:","Width of overlap Z:","Ширина закладки З:","Breite der Überlappung Z:",null,"Ширина закладки Z:",null,"Širina prekrivanja Z:","Šírka prekritia Z:"]
["mm (minimum 16 mm)",81,"mm (minimum 16 mm)","mm (minimum 16 mm)","мм (минимум 16 мм)","mm (mindestens 16 mm)",null,"мм (мінімум 16 мм)",null,"mm (minimum 16 mm)","mm (minimum 16 mm)"]
["mm (minimum 50 mm)",82,"mm (minimum 50 mm)","mm (minimum 50 mm)","мм (минимум 50 мм)","mm (mindestens 50 mm)",null,"мм (мінімум 50 мм)",null,"mm (minimum 50 mm)","mm (minimum 50 mm)"]
["mm (16 - 22 mm)",83,"mm (16 - 22 mm)","mm (16 - 22 mm)","мм (16-22 мм)","mm (16 - 22 mm)",null,"мм (16-22 мм)",null,"mm (16 - 22 mm)","mm (16 - 22 mm)"]
["mm (minimum 20 mm)",84,"mm (minimum 20 mm)","mm (minimum 20 mm)","мм (минимум 20мм)","mm (mindestens 20 mm)",null,"мм (мінімум 20 мм)",null,"mm (minimum 20 mm)","mm (minimum 20 mm)"]
["<--Zvýšiť šírku prekrytia",85,"<--Zwiększ szerokość zakładki","<-- increase the overlap width","<-- Увеличь ширину закладки","<- Die Breite der Überlappung soll größer sein",null,"Збільшити ширину закладки",null,"<--povečaj širino prekrivanja","<--Zvýšiť šírku prekrytia"]
["Rozmery skrine - naložené dvere",86,"Wymiary szafy - drzwi nakładane","Closet dimensions - applied door","Размеры шкафа - накладные двери","Schrankabmessungen - aufschlagende Tür",null,"Розмір шафи - накладні двері",null,"Dimenzije omare - vrata","Rozmery skrine - naložené dvere"]
["Korpus:",87,"Korpus:","Body:","Корпус:","Korpus:",null,"Корпус:",null,"Korpus:","Korpus:"]
["Výška Ws:",88,"Wysokość Ws:","Height Ws:","Высота ВШ:","Höhe Ws:",null,"Висота Ws:",null,"Višina Ws:","Výška Ws:"]
["Šírka Ss:",89,"Szerokość Ss:","Width Ss:","Ширина ШШ:","Breite Ss:",null,"Ширина Ss:",null,"Širina Ss:","Šírka Ss:"]
["Hĺbka Gs:",90,"Głębokość Gs:","Depth Gs:","Глубина ГШ:","Tiefe Gs:",null,"Глибина Gs:",null,"Globina Gs:","Hĺbka Gs:"]
["Vnútro korpusu:",91,"Wnętrze korpusu:","Inside of body:","Внутренние размеры корпуса:","Korpusinnenabmessungen:",null,"Внутрішні розміри корпусу:",null,"Notranjost korpusa:","Vnútro korpusu:"]
["Výška Wu:",92,"Wysokość Wu:","Height Wu:","Высота ВВ:","Höhe Wu:",null,"Висота Wu:",null,"Višina Wu:","Výška Wu:"]
["Šírka Sw:",93,"Szerokość Sw:","Width Sw:","Ширина ВШ:","Breite Sw:",null,"Ширина Sw:",null,"Širina Sw:","Šírka Sw:"]
["Hĺbka Gu:",94,"Głębokość Gu:","Depth Gu:","Глубина ВГ:","Tiefe Gu:",null,"Глибина Gu:",null,"Globina Gu:","Hĺbka Gu:"]
["Panel horný a spodný",95,"Wieniec górny i dolny:","Top and bottom plinth:","Торец верхний и нижний:","Obere und untere Schrankkante:",null,"Торець верхній і нижній:",null,"Venec zgornji in spodnji:","Panel horný a spodný"]
["Rozmer sokla:",96,"Wymiary cokołu:","Plinth dimensions:","Размеры цоколя:","Sockelabmessungen:",null,"Розмір цоколя:",null,"Veličina sokle:","Rozmer sokla:"]
["Ľavý bok:",97,"Bok lewy:","Left side:","Левая сторона:","Linke Seite:",null,"Ліва сторона:",null,"Bok levi:","Ľavý bok:"]
["Pravý bok:",98,"Bok prawy:","Right side:","Правая сторона:","Rechte Seite:",null,"Права сторона:",null,"Bok desni:","Pravý bok:"]
["Zvyslé delenie:",99,"Przegrody pionowe:","Vertical partition:","Вертикальные перегородки:","Senkrechte Trennungen:",null,"Вертикальні перегородки:",null,"Vertikalne pregrade:","Zvyslé delenie:"]
["Rozmery dverí:",100,"Wymiary drzwi:","Door dimensions:","Размеры дверей:","Türabmessungen:",null,"Виміри дверей:",null,"Dimenzije vrat:","Rozmery dverí:"]
["Rozmery skrine - vložené dvere",101,"Wymiary szafy - drzwi wpuszczane","Closet dimensions - inset doors","Размеры шкафа - внутренние двери","Schrankabmessungen - Innentür",null,"Виміри шафи - внутрішні двері",null,"Dimenzije ormare - utopljena vrata","Rozmery skrine - vložené dvere"]
["Výška Wd:",102,"Wysokość Wd:","Height Wd:","Высота ВД:","Höhe Wd:",null,"Висота Wd:",null,"VišinaWd:","Výška Wd:"]
["Šírka Sd:",103,"Szerokość Sd:","Width Sd:","Ширина ШД:","Breite Sd:",null,"Ширина Sd:",null,"Širina Sd:","Šírka Sd:"]
["Hĺbka Gd:",104,"Grubość Gd:","Depth Gd:","Глубина ГД:","Stärke Gd:",null,"Шлибина Gd:",null,"Debelina Gd:","Hĺbka Gd:"]
["Poznámky:",105,"Notatki:","Notes:","Примечания:","Notizen:",null,"Нотатки:",null,"Beležka:","Poznámky:"]
["Hrúbka: ",106,"Grubość:","Thickness","Толщина:","Stärke:",null,"Товщина:",null,"Debelina:","Hrúbka: "]
["Možnosti montáže:",107,"Opcje montażu:","Mounting options:","Способы монтажа:","Montageoptionen:",null,"Спосіб монтажу:",null,"Opcije montaže:","Možnosti montáže:"]
["Priama montáž na strop",108,"Bezpośredni montaż do sufitu","Mounted directly to the ceiling","Монтаж непосредственно к потолку","Montage direkt an die Decke",null,"Монтаж безпосередньо до стелі",null,"Direktna montaža na strop","Priama montáž na strop"]
["Montáž na stenu - horné uchytenie",109,"Montaż do sufitu  - uchwyt górny","Ceiling mounted - top mount","Монтаж к потолку - профиль верхний","Montage an die Decke - Deckenbefestigung",null,"Монтаж до стелі - верхній профіль",null,"Montaža za strop  - zgornji nosilac","Montáž na stenu - horné uchytenie"]
["Montáž do steny - bočné uchytenie",110,"Montaż do ściany - uchwyt boczny","Wall mounted - side mount","Монтаж к стене - профиль боковой","Montage an die Wand - Wandbefestigung",null,"Монтаж до стіни - боковий профіль",null,"Montaža za strop  - stranski nosilac","Montáž do steny - bočné uchytenie"]
["Dostupné hrúbky výplní:",111,"Dostępne grubości wypełnienia:","Available filling thicknesses:","Доступная толщина наполнения","Verfügbare Füllungsstärken:",null,"Доступна товщина наповнення:",null,"Možnosti debeline  polnil:","Dostupné hrúbky výplní:"]
["Rozmery otvoru:",112,"Wymiary otworu:","Opening dimensions:","Размеры проема:","Öffnungsabmessungen:",null,"Розмір отвору:",null,"Dimenzija odprtine:","Rozmery otvoru:"]
["Výška WO:",113,"Wysokość WO:","Height WO:","Высота проема ВП:","Höhe WO:",null,"Висота WO:",null,"Višina WO:","Výška WO:"]
["Šírka SO:",114,"Szerokość SO:","Width SO:","Ширина проема: ШП:","Breite SO:",null,"Ширина SO:",null,"Širina SO:","Šírka SO:"]
["<----- Pre skryté vedenie Xmin = 46mm",115,"<----- Dla ukrytego prowadnika Xmin = 46mm","<----- For hidden ","<--- для скрытого проводника Хмин.=46мм","<----- Für das versteckte Führungsstück Xmin = 46 mm",null,"<---- Для прихованої направляющої  Хмин.=46мм",null,"<----- za skrita kolesa  Xmin = 46mm","<----- Pre skryté vedenie Xmin = 46mm"]
["Výber montáže",116,"Wybór zabudowy:","Type of ","Выбор установки:","Wahl des Aufbaus:",null,"Спосіб монтажу:",null,"Izaberi vrsto vgradnje:","Výber montáže"]
["Varianta A",117,"Wariant A","Type A","Вариант А","Variante A",null,"Варіант А",null,"Varijanta A","Varianta A"]
["Varianta B",118,"Wariant B","Type B","Вариант Б","Variante B",null,"Варіант Б",null,"Varijanta B","Varianta B"]
["Dĺžka koľajnice",119,"Długość toru","Track lenght","Длина направляющего профиля","Länge der Laufschiene",null,"Довжина направляющого профілю",null,"Dolžina profila","Dĺžka koľajnice"]
["Výpočty pre bezrámové riešenie ( Quantum )",120,"Wyliczenia dla rozwiązania bezramowego (Quantum)","Calculations for frameless solution (Quantum)","Расчеты для системы Quantum без рамы","Berechnungen für die rahmenlose Lösung (Quantum)",null,"Розрахунок для безрамної системи Quantum",null,"Kalkulacija za sisteme brez okvira (Quantum)","Výpočty pre bezrámové riešenie ( Quantum )"]
["Výpočty pre rámové riešenie ( Quantum  R )",121,"Wyliczenia dla rozwiązania ramowego (Quantum R)","Calculations for frame solution (Quantum R)","Расчеты для системы Quantum R с рамой","Berechnungen für die Rahmenlösung (Quantum R)",null,"Розрахунок для рамової системи Quantum",null,"Kalkulacija za sisteme z okvirjem (Quantum R)","Výpočty pre rámové riešenie ( Quantum  R )"]
["Rozmery výplne z DTD 10mm",122,"Wymiary wypełnienia z płyty 10mm","Dimensions of board filling 10mm","Размеры наполнения из плиты 10мм","Abmessungen der Füllung aus Platte 10 mm",null,"Розміри наповнення з плити 10 мм",null,"Dimenzije plošče 10mm","Rozmery výplne z DTD 10mm"]
["Rozmery výplne zo skla  4mm",123,"Wymiary wypełnienia ze szkła 4mm","Dimensions of glass filling 4mm","Размеры наполнения из стекла 4 мм","Abmessungen der Füllung aus Glas 4 mm",null,"Розміри наповнення зі скла 4 мм",null,"Dimenzije stekla 4mm","Rozmery výplne zo skla  4mm"]
["Rozmery hliníkových profilov",124,"Wymiary profili aluminiowych","Dimensions of alumimum profiles","Размеры алюминиевых профилей ","Abmessungen von Alu-Profilen",null,"Розміри алюмінієвих профілів",null,"Dimenzije aluminijskih profilov","Rozmery hliníkových profilov"]
["Šírka prekrytia X:",125,"Szerokość zakładki X:","Overlap X width:","Ширина закладки Х:","Breite der Überlappung X:",null,"Ширина закладки X:",null,"Širina prekrivanja X:","Šírka prekrytia X:"]
["Rozmery krídla dverí:",126,"Wymiary skrzydła drzwi:","Door dimensions:","Размеры полотна двери:","Abmessungen des Türflügels:",null,"Розмір дверного полотна:",null,"Dimenzije vratnega krila:","Rozmery krídla dverí:"]
["Výška z DTD",127,"Wys. el. z płyty","Height of board element","Высота элем. из плиты","Höhe des Elements aus Platte",null,"Висота елем. з плити",null,"Višina el. Iveralnih elementov","Výška z DTD"]
["Výška zo skla",128,"Wys. el. ze szkła","Height of glass element","Высота элем. из стекла","Höhe des Elements aus Glas",null,"Висота елем. зі скла",null,"Višina el. Steklenih elementov","Výška zo skla"]
["Minimum 300mm",129,"Minimum 300mm","Minimum 300mm","Минимум 300 мм","Mindestens 300 mm",null,"Мінімум 300 мм",null,"Minimum 300mm","Minimum 300mm"]
["V systéme Quantum R maximálna výška dverí je 2,7M",130,"W systemach Quantum R maksymalna wysokoś drzwi wynosi 2,7m","In Quantum R the maximum door height = 2,7m","Для систем Quantum R максимальная высота двери - 2,7м","In Systemen Quantum R beträgt die maximale Türhöhe 2,7 m",null,"Для систем Quantum R максимальна висота дверей - 2,7 м",null,"V sistemima Quantum R maksimalna višina vrata je 2,7m","V systéme Quantum R maximálna výška dverí je 2,7M"]
[{"$f":"HLOOKUP($B$1,$C$13:$K$478,$B143,FALSE)","v":"Max. dĺžka \"H\" profilu A-HR10FL je 3M"},131,"Maksymalna długość łącznika A-HR10FL wynosi 3m","Maximum lenght of connector A-HR10FL = 3m","Максимальная длина соединителя A-HR10FL - 3м","Die maximale Länge des Verbinders A-HR10FL beträgt 3 m",null,"Максимальна довжина зєднувача A-HR10FL - 3 м",null,"Maksimalna dolžina  spojnega elementa A-HR10FL je 3m","Max. dĺžka \"H\" profilu A-HR10FL je 3M"]
["Max. dĺžka \"H\" profilov A-HRS10 a HR10 je 6M",132,"Maksymalna długość łączników A-HRS10 i A-HR10 wynosi 6m","Maximum lenght of connectors A-HRS10 and A-HR10 = 6m","Максимальная длина соединителей HRS10 и A-HR10 - 6м","Die maximale Länge der Verbinder A-HRS10 und A-HR10 beträgt 6 m",null,"Максимальна довжина з'єднувачів HRS10 і A-HR10 - 6 м",null,"Maksimalna dolžina spojnega  elemenata A-HRS10 i A-HR10 je 6m","Max. dĺžka \"H\" profilov A-HRS10 a HR10 je 6M"]
["Váha krídla ( kg )",133,"Waga skrzydła [kg]",null,"Вес полотна (кг)","Gewicht des Flügels [kg]",null,"Вага полотна (кг)",null,"teža krila [kg]","Váha krídla ( kg )"]
["Prekročena max. váha krídla 50kg",134,"Przekroczono dopuszczalną wagę skrzydła 50kg","Exceeded the maximum weight of door 50kg","Превышен допустимый вес полотна 50кг","Das zulässige Gewicht des Flügels von 50 kg wurde überschritten",null,"Перевищена допустима вага полотна 50 кг",null,"Teža krila je večja od maksimalne 50kg","Prekročena max. váha krídla 50kg"]
["Max. 3M",135,"Max 3m","Max 3m","Мах 3м","Max 3 m",null,"MAX  3 м",null,"Max 3m","Max. 3M"]
["Hrúbka horného panelu:",136,"Grubość wieńca górnego:","Top plinth thickness:","Толщина верхнего торца:","Stärke der oberen Schrankkante:",null,"Товщина верхнього торця:",null,"Debelina zgornjega venca","Hrúbka horného panelu:"]
["Hĺbka Gw:",137,"Głębokość Gw:","Depth Gw:","Глубина Gw:","Tiefe Gw:",null,"Глибина Gw.:",null,"Globina Gw:","Hĺbka Gw:"]
["Hrúbka dolného",138,"Grubość dolnego","Thickness of bottom","Толщина нижнего","Stärke der unteren",null,"Товщина нижнього:",null,"Debelina spodnjega","Hrúbka dolného"]
["Hrúbka horného",139,"Grubość górnego","Thickness of top","Толщина верхнего","Stärke der oberen",null,"Товщина верхнього:",null,"Debelina zgornjega","Hrúbka horného"]
["Váha:",140,"Waga:","Weight:","Вес:","Gewicht:",null,"Вага:",null,"Teža:","Váha:"]
["Zvýšiť hrúbku horného panela",141,"Zwiększ grubość wieńca górnego","increase top plinth thickness","Увеличить толщ. верхнего торца:","Die obere Schrankkante soll stärker sein",null,"Збільшити товщину верх. торця",null,"Povečak debelino zgornjega venca","Zvýšiť hrúbku horného panela"]
["Ostatné rozmery:",142,"Pozostałe wymiary:","Other Dimensions:","Остальные размера:","Sonstige Abmessungen:",null,"Решта розмірів:",null,"Ostale dimenzije:","Ostatné rozmery:"]
["V systéme Mito/Mito plus \"H\" profily - NIE",143,"W systemie Mito/Mito PLUS nie stosuje się łączników","In system Mito/Mito PLUS do not apply connectors","В системе Mito/Mito PLUS соединители не используются ","Im System Mito/Mito PLUS werden keine Verbinder angewendet",null,"В системі Mito/Mito PLUS з'єднувачі не використовуються",null,"V sistemu Mito/Mito PLUS se ne koristijo spojni elementi","V systéme Mito/Mito plus \"H\" profily - NIE"]
["BEZRÁMOVÉ",144,"---BEZRAMOWE---","---FRAMELESS---","--- без рамы ---","--- Rahmenlose ---",null,"--- безрамної ---",null,"--- Brez okvira ---","BEZRÁMOVÉ"]
["RÁMOVÉ",145,"---RAMOWE---","---FRAME---","--- Pамa ---","--- Alu-Rahmen ---",null,"--- Pамa ---",null,"--- Alu-Okvir ---","RÁMOVÉ"]
["Novinky",146,"----- NOWOŚCI -----",null,null,null,null,null,null,null,"Novinky"]
[0,147]
[0,148]
[0,149]
[0,150]
[0,151]
[0,152]
[0,153]
[0,154]
[0,155]
[0,156]
[0,157]
[0,158]
[0,159]
[0,160]
[0,161]
[0,162]
[0,163]
[0,164]
[0,165]
[0,166]
[0,167]
[0,168]
[0,169]
[0,170]
[0,171]
[0,172]
[0,173]
[0,174]
[0,175]
[0,176]
[0,177]
[0,178]
[0,179]
[0,180]
[0,181]
[0,182]
[0,183]
[0,184]
[0,185]
[0,186]
[0,187]
[0,188]
[0,189]
[0,190]
[0,191]
[0,192]
[0,193]
[0,194]
[{"$f":"HLOOKUP($B$1,$C$13:$K$478,$B207,FALSE)","v":0},195]
[0,196]
[0,197]
[0,198]
[0,199]
[0,200]
[0,201]
[0,202]
[0,203]
[0,204]
[0,205]
[0,206]
[0,207]
[0,208]
[0,209]
[0,210]
[0,211]
[0,212]
[0,213]
[0,214]
[0,215]
[0,216]
[0,217]
[0,218]
[0,219]
[0,220]
[0,221]
[0,222]
[0,223]
[0,224]
[0,225]
[0,226]
[0,227]
[0,228]
[0,229]
[0,230]
[0,231]
[0,232]
[0,233]
[0,234]
[0,235]
[0,236]
[0,237]
[0,238]
[0,239]
[0,240]
[0,241]
[0,242]
[0,243]
[0,244]
[0,245]
[0,246]
[0,247]
[0,248]
[0,249]
[0,250]
[0,251]
[0,252]
[0,253]
[0,254]
[0,255]
[0,256]
[0,257]
[0,258]
[{"$f":"HLOOKUP($B$1,$C$13:$K$478,$B271,FALSE)","v":0},259]
[0,260]
[0,261]
[0,262]
[0,263]
[0,264]
[0,265]
[0,266]
[0,267]
[0,268]
[0,269]
[0,270]
[0,271]
[0,272]
[0,273]
[0,274]
[0,275]
[0,276]
[0,277]
[0,278]
[0,279]
[0,280]
[0,281]
[0,282]
[0,283]
[0,284]
[0,285]
[0,286]
[0,287]
[0,288]
[0,289]
[0,290]
[0,291]
[0,292]
[0,293]
[0,294]
[0,295]
[0,296]
[0,297]
[0,298]
[0,299]
[0,300]
[0,301]
[0,302]
[0,303]
[0,304]
[0,305]
[0,306]
[0,307]
[0,308]
[0,309]
[0,310]
[0,311]
[0,312]
[0,313]
[0,314]
[0,315]
[0,316]
[0,317]
[0,318]
[0,319]
[0,320]
[0,321]
[0,322]
[{"$f":"HLOOKUP($B$1,$C$13:$K$478,$B335,FALSE)","v":0},323]
[0,324]
[0,325]
[0,326]
[0,327]
[0,328]
[0,329]
[0,330]
[0,331]
[0,332]
[0,333]
[0,334]
[0,335]
[0,336]
[0,337]
[0,338]
[0,339]
[0,340]
[0,341]
[0,342]
[0,343]
[0,344]
[0,345]
[0,346]
[0,347]
[0,348]
[0,349]
[0,350]
[0,351]
[0,352]
[0,353]
[0,354]
[0,355]
[0,356]
[0,357]
[0,358]
[0,359]
[0,360]
[0,361]
[0,362]
[0,363]
[0,364]
[0,365]
[0,366]
[0,367]
[0,368]
[0,369]
[0,370]
[0,371]
[0,372]
[0,373]
[0,374]
[0,375]
[0,376]
[0,377]
[0,378]
[0,379]
[0,380]
[0,381]
[0,382]
[0,383]
[0,384]
[0,385]
[0,386]
[{"$f":"HLOOKUP($B$1,$C$13:$K$478,$B399,FALSE)","v":0},387]
[0,388]
[0,389]
[0,390]
[0,391]
[0,392]
[0,393]
[0,394]
[0,395]
[0,396]
[0,397]
[0,398]
[0,399]
[0,400]
[0,401]
[0,402]
[0,403]
[0,404]
[0,405]
[0,406]
[0,407]
[0,408]
[0,409]
[0,410]
[0,411]
[0,412]
[0,413]
[0,414]
[0,415]
[0,416]
[0,417]
[0,418]
[0,419]
[0,420]
[0,421]
[0,422]
[0,423]
[0,424]
[0,425]
[0,426]
[0,427]
[0,428]
[0,429]
[0,430]
[0,431]
[0,432]
[0,433]
[0,434]
[0,435]
[0,436]
[0,437]
[0,438]
[0,439]
[0,440]
[0,441]
[0,442]
[0,443]
[0,444]
[0,445]
[0,446]
[0,447]
[0,448]
[0,449]
[0,450]
[{"$f":"HLOOKUP($B$1,$C$13:$K$478,$B463,FALSE)","v":0},451]
[0,452]
[0,453]
[0,454]
[0,455]
[0,456]
[0,457]
[0,458]
[0,459]
[0,460]
[0,461]
[0,462]
[0,463]
[0,464]
[0,465]
[0,466]